Workbook

Sheet DHHS
I1: DHHS Letters of Credit
I2: Summary of Accounts
A4: | | N4: 1010 | O4: 2000 | P4: 2210 or 2220 | S4: \E | T4: {?}{D}{BRANCH \E}
A5: | | K5: Claim on Cash Balances
A6: | | I6: R0100000 | J6: R010XXXX | O6: Accounts | P6: Accrued | S6: \D | T6: {?}~{edit}/100~{D}{BRANCH \D}
A7: | | C7: DATE | F7: INTEREST | G7: RATE | H7: Balance | I7: Cash Receipts | J7: Expenditures | L7: Acct # | M7: Debits | N7: Credits | O7: Payable | P7: Payroll
A8: | | B8: BALANCE FORWARD | H8: -91392.73
A9: | | B9: Jan | C9: 1 | D9: 2015 | F9: =ROUND(IF(H9<0,0,(H9*(G9/365))/100),2) -> 0 | G9: 0.1 | H9: =H8+I9-J9 -> -81024.9 | J9: -10367.83 | L9: R0100000 | N9: 261041.53 | Q9: -272431.6
A10: | | C10: =C9+1 -> 2 | F10: 0 | G10: 0.1 | H10: =H9+I10-J10 -> -87125.19 | J10: 6100.29 | Q10: -1558.86
A11: | | C11: 3 | F11: 0 | G11: 0.1 | H11: =H10+I11-J11 -> -87125.19 | Q11: -396.3
A12: | | C12: 4 | F12: 0 | G12: 0.1 | H12: =H11+I12-J12 -> -87125.19
A13: | | C13: 5 | F13: 0 | G13: 0.1 | H13: =H12+I13-J13 -> -87534.19 | J13: 409
A14: | | C14: 6 | F14: 0 | G14: 0.1 | H14: -88534.43 | J14: 1000.24
A15: | | C15: 7 | F15: 0 | G15: 0.1 | H15: -88734.52 | J15: 200.09
A16: | | C16: 8 | F16: 0 | G16: 0.1 | H16: -89000.91 | J16: 266.39
A17: | | C17: 9 | F17: 0 | G17: 0.1 | H17: -89485.34 | J17: 484.43
A18: | | C18: 10 | F18: 0 | G18: 0.1 | H18: -89485.34
A19: | | C19: 11 | F19: 0 | G19: 0.1 | H19: -89485.34
A20: | | C20: 12 | F20: 0 | G20: 0.1 | H20: -94498.2 | J20: 5012.86
A21: | | C21: 13 | F21: 0 | G21: 0.1 | H21: -94584.86 | J21: 86.66
A22: | | C22: 14 | F22: 0 | G22: 0.1 | H22: -96565 | J22: 1980.14
A23: | | C23: 15 | F23: 0 | G23: 0.1 | H23: -97580.78 | J23: 1015.78
A24: | | C24: 16 | F24: 0 | G24: 0.1 | H24: -116778.69 | J24: 19197.91
A25: | | C25: 17 | F25: 0 | G25: 0.1 | H25: -116778.69
A26: | | C26: 18 | F26: 0 | G26: 0.1 | H26: -116778.69
A27: | | C27: 19 | F27: 0 | G27: 0.1 | H27: -116778.69
A28: | | C28: 20 | F28: 0 | G28: 0.1 | H28: -119237.93 | J28: 2459.24
A29: | | C29: 21 | F29: 0 | G29: 0.1 | H29: -119259.06 | J29: 21.13
A30: | | C30: 22 | F30: 0 | G30: 0.1 | H30: -120198.82 | J30: 939.76
A31: | | C31: 23 | F31: 0 | G31: 0.1 | H31: -131693.43 | J31: 11494.61
A32: | | C32: 24 | F32: 0 | G32: 0.1 | H32: -131693.43
A33: | | C33: 25 | F33: 0 | G33: 0.1 | H33: -131693.43
A34: | | C34: 26 | F34: 0 | G34: 0.1 | H34: -132090.81 | J34: 397.38 | M34: - | N34: - | O34: -
A35: | | C35: 27 | F35: 0 | G35: 0.1 | H35: -133302.94 | J35: 1212.13 | L35: TOTALS | M35: =SUM(M10:M34) -> 0 | N35: =SUM(N9:N34) -> 261041.53 | O35: =SUM(O9:O34) -> 0 | P35: =SUM(P9:P26) -> 0
A36: | | C36: 28 | F36: 0 | G36: 0.1 | H36: -168145.95 | J36: 34843.01
A37: | | C37: 29 | F37: 0 | G37: 0.1 | H37: -168948.95 | J37: 803 | L37: Balance | N37: =H39 -> -261041.53
A38: | | C38: 30 | F38: 0 | G38: 0.1 | H38: -193607.76 | J38: 24658.81
A39: | | C39: 31 | F39: 0 | G39: 0.1 | H39: =H38+I39-J39 -> -261041.53 | J39: 67433.77 | L39: Claim on Cash | N39: =M35-N35+O35+P35 -> -261041.53
A40: | | F40: - | I40: - | J40: - | N40: -
A41: | | F41: =SUM(F9:F39) -> 0 | I41: =SUM(I9:I39) -> 0 | J41: =SUM(J9:J39) -> 169648.8 | L41: Difference | N41: =N37-N38-N39 -> 0
A42: | | N42: =
A43: | | B43: Interest YTD | F43: =F41 -> 0
A44: |
A45: |::
A46: | | B46: Feb | C46: 1 | D46: =D9 -> 2015 | F46: =ROUND(IF(H46<0,0,(H46*(G46/365))/100),2) -> 0 | G46: 0.1 | H46: =H39+I46-J46 -> -262436.33 | J46: 1394.8 | L46: R0100000 | N46: 221591.16 | Q46: -230434.29
A47: | | C47: =C46+1 -> 2 | F47: 0 | G47: 0.1 | H47: =H46+I47-J47 -> -192419.46 | I47: 73531.26 | J47: 3514.39 | L47: R0102056 | O47: -489 | Q47: -507.85
A48: | | C48: 3 | F48: 0 | G48: 0.1 | H48: -193526.08 | J48: 1106.62 | Q48: 83.74
A49: | | C49: 4 | F49: 0 | G49: 0.1 | H49: -200610.86 | J49: 7084.78
A50: | | C50: 5 | F50: 0 | G50: 0.1 | H50: -204613.43 | J50: 4002.57
A51: | | C51: 6 | F51: 0 | G51: 0.1 | H51: -212553.09 | J51: 7939.66
A52: | | C52: 7 | F52: 0 | G52: 0.1 | H52: -212553.09
A53: | | C53: 8 | F53: 0 | G53: 0.1 | H53: -212553.09
A54: | | C54: 9 | F54: 0 | G54: 0.1 | H54: -219457.4 | J54: 6904.31
A55: | | C55: 10 | F55: 0 | G55: 0.1 | H55: -220024 | J55: 566.6
A56: | | C56: 11 | F56: 0 | G56: 0.1 | H56: -221549.07 | J56: 1525.07
A57: | | C57: 12 | F57: 0 | G57: 0.1 | H57: -226057.27 | J57: 4508.2
A58: | | C58: 13 | F58: 0 | G58: 0.08 | H58: -244319.08 | J58: 18261.81
A59: | | C59: 14 | F59: 0 | G59: 0.08 | H59: -244319.08
A60: | | C60: 15 | F60: 0 | G60: 0.08 | H60: -244319.08
A61: | | C61: 16 | F61: 0 | G61: 0.08 | H61: -244319.08
A62: | | C62: 17 | F62: 0 | G62: 0.08 | H62: -246898.77 | J62: 2579.69
A63: | | C63: 18 | F63: 0 | G63: 0.08 | H63: -253666.18 | J63: 6767.41
A64: | | C64: 19 | F64: 0 | G64: 0.08 | H64: -258999.62 | J64: 5333.44
A65: | | C65: 20 | F65: 0 | G65: 0.08 | H65: -274548.81 | J65: 15549.19
A66: | | C66: =C65+1 -> 21 | F66: 0 | G66: 0.08 | H66: =H65+I66-J66 -> -274548.81
A67: | | C67: 22 | F67: 0 | G67: 0.08 | H67: -274548.81
A68: | | C68: 23 | F68: 0 | G68: 0.08 | H68: -293488.95 | J68: 18940.14 | M68: - | N68: - | O68: -
A69: | | C69: 24 | F69: 0 | G69: 0.08 | H69: -294337.85 | J69: 848.9 | L69: TOTALS | M69: =SUM(M46:M68) -> 0 | N69: =SUM(N46:N68) -> 221591.16 | O69: =SUM(O46:O68) -> -489 | P69: =SUM(P46:P68) -> 0
A70: | | C70: 25 | F70: 0 | G70: 0.08 | H70: -126212.62 | I70: 168183.88 | J70: 58.65
A71: | | C71: 26 | F71: 0 | G71: 0.08 | H71: -129958.12 | J71: 3745.5 | L71: Balance | N71: =H73 -> -222080.16
A72: | | C72: 27 | F72: 0 | G72: 0.08 | H72: -142888.84 | J72: 12930.72
C73: 28 | F73: 0 | G73: 0.08 | H73: -222080.16 | J73: 79191.32
L74: Claim on Cash | N74: =M69-N69+O69+P69 -> -222080.16
A75: | | F75: - | I75: - | J75: - | N75: -
A76: | | F76: =SUM(F46:F75) -> 0 | I76: =SUM(I43:I74) -> 241715.14 | J76: =SUM(J46:J74) -> 202753.77 | L76: Difference | N76: =N71-N72-N73-N74 -> 0
A77: | | N77: =
A78: | | B78: Interest YTD | F78: =F76+F43 -> 0
A79: |
A80: |::
A81: | | B81: Mar | C81: 1 | D81: =D46 -> 2015 | F81: =ROUND(IF(H81<0,0,(H81*(G81/365))/100),2) -> 0 | G81: 0.08 | H81: =H73+I81-J81 -> -222080.16 | L81: R0100000 | N81: 344905.96
A82: | | C82: =C81+1 -> 2 | F82: 0 | G82: 0.08 | H82: =H81+I82-J82 -> -233203.22 | J82: 11123.06 | L82: R0102054 | O82: -79.26
A83: | | C83: 3 | F83: 0 | G83: 0.08 | H83: =H82+I83-J83 -> -242703.29 | J83: 9500.07 | L83: R0102056 | O83: -137
A84: | | C84: 4 | F84: 0 | G84: 0.08 | H84: -251470.28 | J84: 8766.99 | L84: R0102064 | O84: -471
A85: | | C85: 5 | F85: 0 | G85: 0.08 | H85: -255708.08 | J85: 4237.8
A86: | | C86: 6 | F86: 0 | G86: 0.08 | H86: -261008.26 | J86: 5300.18
A87: | | C87: 7 | F87: 0 | G87: 0.08 | H87: -261008.26
A88: | | C88: 8 | F88: 0 | G88: 0.08 | H88: -261286.26 | J88: 278
A89: | | C89: 9 | F89: 0 | G89: 0.08 | H89: -272908.51 | J89: 11622.25
A90: | | C90: 10 | F90: 0 | G90: 0.08 | H90: -387714.12 | J90: 114805.61
A91: | | C91: 11 | F91: 0 | G91: 0.08 | H91: -396242.95 | J91: 8528.83
A92: | | C92: 12 | F92: 0 | G92: 0.08 | H92: -396305.83 | J92: 62.88
A93: | | C93: 13 | F93: 0 | G93: 0.08 | H93: -407554.84 | J93: 11249.01
A94: | | C94: 14 | F94: 0 | G94: 0.08 | H94: -407554.84
A95: | | C95: 15 | F95: 0 | G95: 0.08 | H95: -407952.88 | J95: 398.04
A96: | | C96: 16 | F96: 0 | G96: 0.08 | H96: -409826.75 | J96: 1873.87 | Q96: -12231.79
A97: | | C97: 17 | F97: 0 | G97: 0.08 | H97: -410654.05 | J97: 827.3 | Q97: -26.62
A98: | | C98: 18 | F98: 0 | G98: 0.08 | H98: -411404.39 | J98: 750.34
A99: | | C99: 19 | F99: 0 | G99: 0.08 | H99: -420626 | J99: 9221.61
A100: | | C100: 20 | F100: 0 | G100: 0.08 | H100: -219492.71 | I100: 202196.18 | J100: 1062.89
A101: | | C101: 21 | F101: 0 | G101: 0.08 | H101: -219492.71
A102: | | C102: 22 | F102: 0 | G102: 0.08 | H102: -219492.71
A103: | | C103: 23 | F103: 0 | G103: 0.08 | H103: -220747.69 | J103: 1254.98
A104: | | C104: 24 | F104: 0 | G104: 0.08 | H104: -226213.77 | J104: 5466.08
A105: | | C105: 25 | F105: 0 | G105: 0.08 | H105: -231559.91 | J105: 5346.14
A106: | | C106: 26 | F106: 0 | G106: 0.08 | H106: -234530.84 | J106: 2970.93 | M106: - | N106: - | O106: -
A107: | | C107: 27 | F107: 0 | G107: 0.08 | H107: -257430.94 | J107: 22900.1 | L107: TOTALS | M107: =SUM(M81:M106) -> 0 | N107: =SUM(N81:N106) -> 344905.96 | O107: =SUM(O81:O106) -> -687.26 | P107: =SUM(P81:P106) -> 0
A108: | | C108: 28 | F108: 0 | G108: 0.08 | H108: -257430.94
A109: | | C109: 29 | F109: 0 | G109: 0.08 | H109: -257430.94 | L109: Balance | N109: =H111 -> -345593.22
A110: | | C110: 30 | F110: 0 | G110: 0.08 | H110: -259297.79 | J110: 1866.85
A111: | | C111: 31 | F111: 0 | G111: 0.08 | H111: -345593.22 | J111: 86295.43 | L111: Claim on Cash | N111: =M107-N107+O107+P107 -> -345593.22
A112: | | F112: - | I112: - | J112: - | N112: -
A113: | | F113: =SUM(F81:F111) -> 0 | I113: =SUM(I81:I111) -> 202196.18 | J113: =SUM(J81:J111) -> 325709.24 | L113: Difference | N113: =N109+N110-N111 -> 0
A114: |
A115: | | B115: Interest YTD | F115: =F78+F113 -> 0
A116: |
A117: |::
A118: | | B118: Apr | C118: 1 | D118: =D81 -> 2015 | F118: =ROUND(IF(H118<0,0,(H118*(G118/365))/100),2) -> 0 | G118: 0.08 | H118: =H111+I118-J118 -> -345771.47 | J118: 178.25 | L118: R0100000 | N118: 217240.38
A119: | | C119: =C118+1 -> 2 | F119: 0 | G119: 0.08 | H119: =H118+I119-J119 -> -349805.38 | J119: 4033.91 | L119: R0102063 | O119: -246
A120: | | C120: 3 | F120: 0 | G120: 0.08 | H120: -357225.99 | J120: 7420.61 | L120: R0102068 | O120: -12600
A121: | | C121: 4 | F121: 0 | G121: 0.08 | H121: -357225.99
A122: | | C122: 5 | F122: 0 | G122: 0.08 | H122: -357225.99
A123: | | C123: 6 | F123: 0 | G123: 0.08 | H123: -358592.02 | J123: 1366.03
A124: | | C124: 7 | F124: 0 | G124: 0.08 | H124: -369549.3 | J124: 10957.28
A125: | | C125: 8 | F125: 0 | G125: 0.08 | H125: -369618.51 | J125: 69.21
A126: | | C126: 9 | F126: 0 | G126: 0.08 | H126: =H125+I126-J126 -> -378195.96 | J126: 8577.45
A127: | | C127: 10 | F127: 0 | G127: 0.08 | H127: -391269.94 | J127: 13073.98
A128: | | C128: 11 | F128: 0 | G128: 0.08 | H128: -391269.94
A129: | | C129: 12 | F129: 0 | G129: 0.08 | H129: -391269.94
A130: | | C130: 13 | F130: 0 | G130: 0.08 | H130: -394431.77 | J130: 3161.83
A131: | | C131: 14 | F131: 0 | G131: 0.08 | H131: -396287.55 | J131: 1855.78
A132: | | C132: 15 | F132: 0 | G132: 0.08 | H132: -403587.53 | J132: 7299.98
A133: | | C133: 16 | F133: 0 | G133: 0.08 | H133: -404432.53 | J133: 845
A134: | | C134: 17 | F134: 0 | G134: 0.08 | H134: -435261.58 | J134: 30829.05
A135: | | C135: 18 | F135: 0 | G135: 0.08 | H135: -435261.58
A136: | | C136: 19 | F136: 0 | G136: 0.08 | H136: -435464.35 | J136: 202.77
A137: | | C137: 20 | F137: 0 | G137: 0.08 | H137: -448877.7 | J137: 13413.35
A138: | | C138: 21 | F138: 0 | G138: 0.08 | H138: -457698.42 | J138: 8820.72
A139: | | C139: 22 | F139: 0 | G139: 0.08 | H139: -458376.99 | J139: 678.57
A140: | | C140: 23 | F140: 0 | G140: 0.08 | H140: -132436.75 | I140: 325995.16 | J140: 54.92
A141: | | C141: 24 | F141: 0 | G141: 0.08 | H141: -142819.57 | J141: 10382.82
A142: | | C142: 25 | F142: 0 | G142: 0.08 | H142: =H141+I142-J142 -> -142819.57 | M142: - | N142: - | O142: -
A143: | | C143: 26 | F143: 0 | G143: 0.08 | H143: -142819.57 | L143: TOTALS | M143: =SUM(M118:M142) -> 0 | N143: =SUM(N118:N142) -> 217240.38 | O143: =SUM(O118:O142) -> -12846 | P143: =SUM(P118:P142) -> 0 | Q143: =SUM(Q118:Q142) -> 0
A144: | | C144: 27 | F144: 0 | G144: 0.08 | H144: -145900.61 | J144: 3081.04
A145: | | C145: 28 | F145: 0 | G145: 0.08 | H145: -155272.82 | J145: 9372.21 | L145: Balance | N145: =H147 -> -230086.38
A146: | | C146: 29 | F146: 0 | G146: 0.08 | H146: -156982.4 | J146: 1709.58
A147: | | C147: 30 | F147: 0 | G147: 0.08 | H147: -230086.38 | J147: 73103.98 | L147: Claim on Cash | N147: =M143-N143+O143+P143 -> -230086.38
A148: | | F148: - | I148: - | J148: - | N148: -
A149: | | F149: =SUM(F118:F147) -> 0 | I149: =SUM(I117:I147) -> 325995.16 | J149: =SUM(J117:J147) -> 210488.32 | L149: Difference | N149: =N145-N146-N147 -> 0
A150: | | N150: =
A151: | | B151: Interest YTD | F151: =F149+F115 -> 0
A152: |
A153: |::
A154: | | B154: May | C154: 1 | D154: =D118 -> 2015 | F154: =ROUND(IF(H154<0,0,(H154*(G154/365))/100),2) -> 0 | G154: 0.08 | H154: =H147+I154-J154 -> -233094.9 | J154: 3008.52 | L154: R0100000 | N154: 345089.94
A155: | | C155: =C154+1 -> 2 | F155: =ROUND(IF(H155<0,0,(H155*(G155/365))/100),2) -> 0 | G155: 0.08 | H155: =H154+I155-J155 -> -233094.9 | L155: R0102062 | O155: -5895.03
A156: | | C156: 3 | F156: 0 | G156: 0.08 | H156: -233094.9 | L156: R0102064 | O156: -502
A157: | | C157: 4 | F157: 0 | G157: 0.08 | H157: -234992.3 | J157: 1897.4
A158: | | C158: 5 | F158: 0 | G158: 0.08 | H158: -237374.74 | J158: 2382.44
A159: | | C159: 6 | F159: 0 | G159: 0.08 | H159: -244782.92 | J159: 7408.18
A160: | | C160: 7 | F160: 0 | G160: 0.08 | H160: -244799.88 | J160: 16.96
A161: | | C161: 8 | F161: 0 | G161: 0.08 | H161: -287568.6 | J161: 42768.72
A162: | | C162: 9 | F162: 0 | G162: 0.08 | H162: -288627.6 | J162: 1059
A163: | | C163: 10 | F163: 0 | G163: 0.08 | H163: -288627.6
A164: | | C164: 11 | F164: 0 | G164: 0.08 | H164: -289398.03 | J164: 770.43
A165: | | C165: 12 | F165: 0 | G165: 0.08 | H165: -297888.18 | J165: 8490.15
A166: | | C166: 13 | F166: 0 | G166: 0.08 | H166: -299727.22 | J166: 1839.04
A167: | | C167: 14 | F167: 0 | G167: 0.08 | H167: -305226.57 | J167: 5499.35
A168: | | C168: 15 | F168: 0 | G168: 0.08 | H168: -314648.19 | J168: 9421.62
A169: | | C169: 16 | F169: 0 | G169: 0.08 | H169: -314648.19
A170: | | C170: 17 | F170: 0 | G170: 0.08 | H170: -317070.41 | J170: 2422.22
A171: | | C171: 18 | F171: 0 | G171: 0.08 | H171: -318925.56 | J171: 1855.15
A172: | | C172: 19 | F172: 0 | G172: 0.08 | H172: -319219.97 | J172: 294.41
A173: | | C173: 20 | F173: 0 | G173: 0.08 | H173: -335795.29 | J173: 16575.32
A174: | | C174: 21 | F174: 0 | G174: 0.08 | H174: -336026.96 | J174: 231.67
A175: | | C175: 22 | F175: 0 | G175: 0.08 | H175: -152866.55 | I175: 210642.53 | J175: 27482.12
A176: | | C176: 23 | F176: 0 | G176: 0.08 | H176: -152866.55
A177: | | C177: 24 | F177: 0 | G177: 0.08 | H177: -152866.55
A178: | | C178: 25 | F178: 0 | G178: 0.08 | H178: -152866.55
A179: | | C179: 26 | F179: 0 | G179: 0.08 | H179: -173038.38 | J179: 20171.83 | M179: - | N179: - | O179: -
A180: | | C180: 27 | F180: 0 | G180: 0.08 | H180: -174921.1 | J180: 1882.72 | L180: TOTALS | M180: =SUM(M154:M179) -> 0 | N180: =SUM(N154:N179) -> 345089.94 | O180: =SUM(O154:O179) -> -6397.03 | P180: =SUM(P154:P179) -> 0
A181: | | C181: 28 | F181: 0 | G181: 0.08 | H181: -187790.25 | J181: 12869.15
A182: | | C182: 29 | F182: 0 | G182: 0.08 | H182: -191735.54 | J182: 3945.29 | L182: Balance | N182: =H184 -> -351486.97
A183: | | C183: 30 | F183: 0 | G183: 0.08 | H183: -192125.54 | J183: 390
A184: | | C184: 31 | F184: 0 | G184: 0.08 | H184: -351486.97 | J184: 159361.43 | L184: Claim on Cash | N184: =M180-N180+O180+P180 -> -351486.97
A185: | | F185: - | I185: - | J185: - | N185: -
A186: | | F186: =SUM(F154:F184) -> 0 | I186: =SUM(I154:I184) -> 210642.53 | J186: =SUM(J154:J184) -> 332043.12 | L186: Difference | N186: =N182-N183-N184 -> 0
A187: | | N187: =
A188: | | B188: Interest YTD | F188: =F186+F151 -> 0
A189: |
A190: |::
A191: | | B191: Jun | C191: 1 | D191: =D154 -> 2015 | F191: =ROUND(IF(H191<0,0,(H191*(G191/365))/100),2) -> 0 | G191: 0.08 | H191: =H184+I191-J191 -> -358819.94 | J191: 7332.97 | L191: R0100000 | N191: 337570.74
A192: | | C192: =C191+1 -> 2 | F192: 0 | G192: 0.08 | H192: =H191+I192-J192 -> -359179.34 | J192: 359.4 | L192: R0102055 | O192: -4783
A193: | | C193: 3 | F193: 0 | G193: 0.08 | H193: -362630.39 | J193: 3451.05 | L193: R0102062 | O193: -1965.01
A194: | | C194: 4 | F194: 0 | G194: 0.08 | H194: -364708.73 | J194: 2078.34 | L194: R0102064 | O194: -334.75
A195: | | C195: 5 | F195: 0 | G195: 0.08 | H195: -393859.05 | J195: 29150.32 | L195: R0102066 | O195: -6201.66
A196: | | C196: 6 | F196: 0 | G196: 0.08 | H196: -394105.3 | J196: 246.25 | L196: R0102068 | O196: -334
A197: | | C197: 7 | F197: 0 | G197: 0.08 | H197: -394105.3
A198: | | C198: 8 | F198: 0 | G198: 0.08 | H198: -394168.63 | J198: 63.33
A199: | | C199: 9 | F199: 0 | G199: 0.08 | H199: =H198+I199-J199 -> -394520.32 | J199: 351.69
A200: | | C200: 10 | F200: 0 | G200: 0.08 | H200: -395822.01 | J200: 1301.69
A201: | | C201: 11 | F201: 0 | G201: 0.08 | H201: -401507.05 | J201: 5685.04
... 247 more rows

Sheet NSF
A1: NSF Letters of Credit | L1: 1010 | N1: 2000 | O1: 2210 or 2220 | Q1: \E | R1: {?}{D}{BRANCH \E}
K2: Claim on Cash Balances
H3: R0110000 | I3: R0110000 | N3: Accounts | O3: Payroll | Q3: \D | R3: {?}/100~{EDIT}{CALC}~{D}{BRANCH \D}
B4: DATE | E4: INTEREST | F4: RATE | G4: Balance | H4: Cash Receipts | I4: Expenditures | K4: Acct # | L4: Debits | M4: Credits | N4: Payable | O4: Accruals
A5: - | B5: - | C5: - | D5: - | E5: - | F5: - | G5: - | H5: - | I5: - | J5: - | K5: - | L5: - | M5: - | N5: - | O5: -
A6: BALANCE FORWARD | G6: -525455.53
A7: Jan | B7: 1 | C7: 2015 | E7: =ROUND(IF(G7<0,0,(G7*(F7/365))/100),2) -> 0 | F7: =DHHS!G9 -> 0.1 | G7: =G6+H7-I7 -> -488158.53 | I7: -37297 | K7: R0110000 | M7: 933243.58
B8: =B7+1 -> 2 | E8: 0 | F8: =DHHS!G10 -> 0.1 | G8: -523423.3 | I8: 35264.77 | K8: R0112199 | N8: -17627.51
B9: 3 | E9: 0 | F9: =DHHS!G11 -> 0.1 | G9: -523423.3
B10: 4 | E10: 0 | F10: =DHHS!G12 -> 0.1 | G10: -523423.3
B11: 5 | E11: 0 | F11: =DHHS!G13 -> 0.1 | G11: -525157.2 | I11: 1733.9
B12: 6 | E12: 0 | F12: =DHHS!G14 -> 0.1 | G12: -529707.08 | I12: 4549.88
B13: 7 | E13: 0 | F13: =DHHS!G15 -> 0.1 | G13: -540826.69 | I13: 11119.61
B14: 8 | E14: 0 | F14: =DHHS!G16 -> 0.1 | G14: -543924.6 | I14: 3097.91
B15: 9 | E15: 0 | F15: =DHHS!G17 -> 0.1 | G15: -545056.48 | I15: 1131.88
B16: 10 | E16: 0 | F16: =DHHS!G18 -> 0.1 | G16: -545056.48
B17: 11 | E17: 0 | F17: =DHHS!G19 -> 0.1 | G17: -546179.12 | I17: 1122.64
B18: 12 | E18: 0 | F18: =DHHS!G20 -> 0.1 | G18: -546833.43 | I18: 654.31
B19: 13 | E19: 0 | F19: =DHHS!G21 -> 0.1 | G19: -557487.28 | I19: 10653.85
B20: 14 | E20: 0 | F20: =DHHS!G22 -> 0.1 | G20: -557490.82 | I20: 3.54
B21: 15 | E21: 0 | F21: =DHHS!G23 -> 0.1 | G21: -557618.24 | I21: 127.42
B22: 16 | E22: 0 | F22: =DHHS!G24 -> 0.1 | G22: -629435 | I22: 71816.76
B23: 17 | E23: 0 | F23: =DHHS!G25 -> 0.1 | G23: -629435
B24: 18 | E24: 0 | F24: =DHHS!G26 -> 0.1 | G24: -634786.63 | I24: 5351.63
B25: 19 | E25: 0 | F25: =DHHS!G27 -> 0.1 | G25: -634786.63
B26: 20 | E26: 0 | F26: =DHHS!G28 -> 0.1 | G26: -638395.16 | I26: 3608.53
B27: 21 | E27: 0 | F27: =DHHS!G29 -> 0.1 | G27: -641050.9 | I27: 2655.74
B28: 22 | E28: 0 | F28: =DHHS!G30 -> 0.1 | G28: -645297.52 | I28: 4246.62
B29: 23 | E29: 0 | F29: =DHHS!G31 -> 0.1 | G29: -649825.89 | I29: 4528.37
B30: 24 | E30: 0 | F30: =DHHS!G32 -> 0.1 | G30: -649825.89
B31: 25 | E31: 0 | F31: =DHHS!G33 -> 0.1 | G31: -649829.39 | I31: 3.5
B32: 26 | E32: 0 | F32: =DHHS!G34 -> 0.1 | G32: -650521.42 | I32: 692.03
B33: 27 | E33: 0 | F33: =DHHS!G35 -> 0.1 | G33: -661049.95 | I33: 10528.53
B34: 28 | E34: 0 | F34: =DHHS!G36 -> 0.1 | G34: -705394.18 | I34: 44344.23
B35: 29 | E35: 0 | F35: =DHHS!G37 -> 0.1 | G35: -707093.34 | I35: 1699.16
B36: 30 | E36: 0 | F36: =DHHS!G38 -> 0.1 | G36: -799214.82 | I36: 92121.48
B37: 31 | E37: 0 | F37: =DHHS!G39 -> 0.1 | G37: -950871.09 | I37: 151656.27
E38: - | H38: - | I38: - | L38: - | M38: - | N38: - | O38: -
E39: =SUM(E7:E37) -> 0 | H39: =SUM(H7:H37) -> 0 | I39: =SUM(I7:I37) -> 425415.56 | K39: TOTALS: | L39: =SUM(L3:L38) -> 0 | M39: =SUM(M3:M38) -> 933243.58 | N39: =SUM(N3:N38) -> -17627.51 | O39: =SUM(O3:O38) -> 0
K41: Balance | M41: =G37 -> -950871.09
K43: Claim on Cash | M43: =L39-M39+N39+O39 -> -950871.09
M44: -
K45: Difference | M45: =M41-M43+M42 -> -3.492459655e-10
A49: Interest YTD | E49: =E39 -> 0
A51: Feb | B51: 1 | C51: =C7 -> 2015 | E51: =ROUND(IF(G51<0,0,(G51*(F51/365))/100),2) -> 0 | F51: =DHHS!$G$46 -> 0.1 | G51: =G37+H51-I51 -> -951544.81 | I51: 673.72 | K51: R0110000 | M51: 940721.5
B52: =B51+1 -> 2 | E52: 0 | F52: =DHHS!$G$47 -> 0.1 | G52: =G51+H52-I52 -> -441849.66 | H52: 529385.09 | I52: 19689.94 | K52: R0112241 | N52: -21470
B53: 3 | E53: 0 | F53: =DHHS!$G$48 -> 0.1 | G53: -442928.39 | I53: 1078.73
B54: 4 | E54: 0 | F54: =DHHS!$G$49 -> 0.1 | G54: -464722.19 | I54: 21793.8
B55: 5 | E55: 0 | F55: =DHHS!$G$50 -> 0.1 | G55: -480119.65 | I55: 15397.46
B56: 6 | E56: 0 | F56: =DHHS!$G$51 -> 0.1 | G56: -493029.63 | I56: 12909.98
B57: 7 | E57: 0 | F57: =DHHS!$G$52 -> 0.1 | G57: -495696.29 | I57: 2666.66
B58: 8 | E58: 0 | F58: =DHHS!$G$53 -> 0.1 | G58: -495696.29
B59: 9 | E59: 0 | F59: =DHHS!$G$54 -> 0.1 | G59: -495726.65 | I59: 30.36
B60: 10 | E60: 0 | F60: =DHHS!$G$55 -> 0.1 | G60: -501623.52 | I60: 5896.87
B61: 11 | E61: 0 | F61: =DHHS!$G$56 -> 0.1 | G61: -501711.91 | I61: 88.39
B62: 12 | E62: 0 | F62: =DHHS!$G$57 -> 0.1 | G62: -504010 | I62: 2298.09
B63: 13 | E63: 0 | F63: =DHHS!$G$58 -> 0.08 | G63: -575742.39 | I63: 71732.39
B64: 14 | E64: 0 | F64: =DHHS!$G$59 -> 0.08 | G64: -575742.39
B65: 15 | E65: 0 | F65: =DHHS!$G$60 -> 0.08 | G65: -575742.39
B66: 16 | E66: 0 | F66: =DHHS!$G$61 -> 0.08 | G66: -581185.1 | I66: 5442.71
B67: 17 | E67: 0 | F67: =DHHS!$G$62 -> 0.08 | G67: -588508.47 | I67: 7323.37
B68: 18 | E68: 0 | F68: =DHHS!$G$63 -> 0.08 | G68: -595844.06 | I68: 7335.59
B69: 19 | E69: 0 | F69: =DHHS!$G$64 -> 0.08 | G69: -597580.78 | I69: 1736.72
B70: 20 | E70: 0 | F70: =DHHS!$G$65 -> 0.08 | G70: -604200.79 | I70: 6620.01
B71: 21 | E71: 0 | F71: =DHHS!$G$66 -> 0.08 | G71: -604200.79
B72: 22 | E72: 0 | F72: =DHHS!$G$67 -> 0.08 | G72: -607545.43 | I72: 3344.64
B73: 23 | E73: 0 | F73: =DHHS!$G$68 -> 0.08 | G73: -615640.2 | I73: 8094.77
B74: 24 | E74: 0 | F74: =DHHS!$G$69 -> 0.08 | G74: -626778.01 | I74: 11137.81
B75: 25 | E75: 0 | F75: =DHHS!$G$70 -> 0.08 | G75: -648472.84 | I75: 21694.83
B76: 26 | E76: 0 | F76: =DHHS!$G$71 -> 0.08 | G76: -655194.94 | I76: 6722.1
B77: 27 | E77: 0 | F77: =DHHS!$G$72 -> 0.08 | G77: =G76+H77-I77 -> -743678.31 | I77: 88483.37
B78: 28 | E78: 0 | F78: =DHHS!$G$73 -> 0.08 | G78: -962191.5 | I78: 218513.19
L80: - | M80: - | N80: - | O80: -
E81: - | H81: - | I81: - | K81: TOTALS: | L81: =SUM(L48:L80) -> 0 | M81: =SUM(M48:M80) -> 940721.5 | N81: =SUM(N48:N80) -> -21470 | O81: =SUM(O48:O80) -> 0
E82: =SUM(E51:E78) -> 0 | H82: =SUM(H51:H78) -> 529385.09 | I82: =SUM(I51:I79) -> 540705.5
K84: Balance | M84: =G78 -> -962191.5
K86: Claim on Cash | M86: =L81-M81+N81+O81 -> -962191.5
M87: -
K88: Difference | M88: =M84-M86-M85 -> -1.164153218e-10
A90: Interest YTD | E90: =E82+E49 -> 0
A92: |:: | B92: 1 | C92: =C51 -> 2015 | E92: =ROUND(IF(G92<0,0,(G92*(F92/365))/100),2) -> 0 | F92: =DHHS!G81 -> 0.08 | G92: =G78+H92-I92 -> -980518.08 | I92: 18326.58 | K92: R0110000 | M92: 473412.41
A93: Mar | B93: =B92+1 -> 2 | E93: 0 | F93: =DHHS!G82 -> 0.08 | G93: =G92+H93-I93 -> -989559.97 | I93: 9041.89 | K93: R0112223 | N93: -9675
B94: 3 | E94: 0 | F94: =DHHS!G83 -> 0.08 | G94: -992732.91 | I94: 3172.94 | K94: R0112242 | N94: -5818.18
B95: 4 | E95: 0 | F95: =DHHS!G84 -> 0.08 | G95: =G94+H95-I95 -> -568086.74 | H95: 425866.74 | I95: 1220.57
B96: 5 | E96: 0 | F96: =DHHS!G85 -> 0.08 | G96: -586026.96 | I96: 17940.22
B97: 6 | E97: 0 | F97: =DHHS!G86 -> 0.08 | G97: -586517.86 | I97: 490.9
B98: 7 | E98: 0 | F98: =DHHS!G87 -> 0.08 | G98: -586517.86
B99: 8 | E99: 0 | F99: =DHHS!G88 -> 0.08 | G99: =G98+H99-I99 -> -592741.28 | I99: 6223.42
B100: 9 | E100: 0 | F100: =DHHS!G89 -> 0.08 | G100: -599834.14 | I100: 7092.86
B101: 10 | E101: 0 | F101: =DHHS!G90 -> 0.08 | G101: -606054.52 | I101: 6220.38
B102: 11 | E102: 0 | F102: =DHHS!G91 -> 0.08 | G102: -613017.55 | I102: 6963.03
B103: 12 | E103: 0 | F103: =DHHS!G92 -> 0.08 | G103: =G102+H103-I103 -> -624425.57 | I103: 11408.02
B104: 13 | E104: 0 | F104: =DHHS!G93 -> 0.08 | G104: -686063.27 | I104: 61637.7
B105: 14 | E105: 0 | F105: =DHHS!G94 -> 0.08 | G105: -686063.27
B106: 15 | E106: 0 | F106: =DHHS!G95 -> 0.08 | G106: -689348.62 | I106: 3285.35
B107: 16 | E107: 0 | F107: =DHHS!G96 -> 0.08 | G107: -689406.62 | I107: 58
B108: 17 | E108: 0 | F108: =DHHS!G97 -> 0.08 | G108: -691494.84 | I108: 2088.22
B109: 18 | E109: 0 | F109: =DHHS!G98 -> 0.08 | G109: =G108+H109-I109 -> -706030.96 | I109: 14536.12
B110: 19 | E110: 0 | F110: =DHHS!G99 -> 0.08 | G110: -708942.25 | I110: 2911.29
B111: 20 | E111: 0 | F111: =DHHS!G100 -> 0.08 | G111: -713041.63 | I111: 4099.38
B112: 21 | E112: 0 | F112: =DHHS!G101 -> 0.08 | G112: -713041.63
B113: 22 | E113: 0 | F113: =DHHS!G102 -> 0.08 | G113: =G112+H113-I113 -> -716338.05 | I113: 3296.42
B114: 23 | E114: 0 | F114: =DHHS!G103 -> 0.08 | G114: -172890.01 | H114: 544817.9 | I114: 1369.86
B115: 24 | E115: 0 | F115: =DHHS!G104 -> 0.08 | G115: -189814.95 | I115: 16924.94
B116: 25 | E116: 0 | F116: =DHHS!G105 -> 0.08 | G116: -210411.06 | I116: 20596.11
B117: 26 | E117: 0 | F117: =DHHS!G106 -> 0.08 | G117: -211838.68 | I117: 1427.62
B118: 27 | E118: 0 | F118: =DHHS!G107 -> 0.08 | G118: -308936.35 | I118: 97097.67
B119: 28 | E119: 0 | F119: =DHHS!G108 -> 0.08 | G119: -308936.35
B120: 29 | E120: 0 | F120: =DHHS!G109 -> 0.08 | G120: -308936.35
B121: 30 | E121: 0 | F121: =DHHS!G110 -> 0.08 | G121: -324308.46 | I121: 15372.11
B122: 31 | E122: 0 | F122: =DHHS!G111 -> 0.08 | G122: -488905.59 | I122: 164597.13
E123: - | H123: - | I123: - | K123: - | L123: - | M123: - | N123: - | O123: -
E124: =SUM(E92:E122) -> 0 | H124: =SUM(H92:H122) -> 970684.64 | I124: =SUM(I92:I122) -> 497398.73 | K124: TOTALS | L124: =SUM(L90:L122) -> 0 | M124: =SUM(M90:M122) -> 473412.41 | N124: =SUM(N90:N123) -> -15493.18 | O124: =SUM(O90:O122) -> 0
K126: Balance | M126: =G122 -> -488905.59
K128: Claim on Cash | M128: =L124-M124+N124+O124 -> -488905.59
M129: -
K130: Difference | M130: =M126+M127-M128 -> 0
A136: Interest YTD
A137: |:: | E137: =E124+E90 -> 0
A138: Apr
B139: 1 | C139: =C92 -> 2015 | E139: =ROUND(IF(G139<0,0,(G139*(F139/365))/100),2) -> 0 | F139: 0.08 | G139: =G122+H139-I139 -> -491453.67 | I139: 2548.08 | K139: R0110000 | M139: 442555.17
B140: =B139+1 -> 2 | E140: 0 | F140: 0.08 | G140: =G139+H140-I140 -> -523046.75 | I140: 31593.08 | K140: R0112231 | N140: -178
B141: 3 | E141: 0 | F141: 0.08 | G141: -524070.33 | I141: 1023.58 | K141: R0112251 | N141: -25693.93
B142: 4 | E142: 0 | F142: 0.08 | G142: -524070.33
B143: 5 | E143: 0 | F143: 0.08 | G143: -524070.33
B144: 6 | E144: 0 | F144: 0.08 | G144: -550029.51 | I144: 25959.18
B145: 7 | E145: 0 | F145: 0.08 | G145: -550147.96 | I145: 118.45
B146: 8 | E146: 0 | F146: 0.08 | G146: -550770.92 | I146: 622.96
B147: 9 | E147: 0 | F147: 0.08 | G147: -563814.01 | I147: 13043.09
B148: 10 | E148: 0 | F148: 0.08 | G148: -617230.02 | I148: 53416.01
B149: 11 | E149: 0 | F149: 0.08 | G149: -617230.02
B150: 12 | E150: 0 | F150: 0.08 | G150: -625319.74 | I150: 8089.72
B151: 13 | E151: 0 | F151: 0.08 | G151: -623212.79 | I151: -2106.95
B152: 14 | E152: 0 | F152: 0.08 | G152: -627474.76 | I152: 4261.97
B153: 15 | E153: 0 | F153: 0.08 | G153: -659029.14 | I153: 31554.38
B154: 16 | E154: 0 | F154: 0.08 | G154: -660100.24 | I154: 1071.1
B155: 17 | E155: 0 | F155: 0.08 | G155: -662538.82 | I155: 2438.58
B156: 18 | E156: 0 | F156: 0.08 | G156: -662538.82 | K156: - | L156: - | M156: - | N156: - | O156: -
B157: 19 | E157: 0 | F157: 0.08 | G157: -666840.16 | I157: 4301.34 | K157: TOTALS: | L157: =SUM(L131:L156) -> 0 | M157: =SUM(M131:M156) -> 442555.17 | N157: =SUM(N131:N156) -> -25871.93 | O157: =SUM(O131:O156) -> 0
B158: 20 | E158: 0 | F158: 0.08 | G158: -668589.38 | I158: 1749.22
B159: 21 | E159: 0 | F159: 0.08 | G159: -668756.27 | I159: 166.89 | K159: Balance | M159: =G168 -> -468427.1
B160: 22 | E160: 0 | F160: 0.08 | G160: -680128.49 | I160: 11372.22
B161: 23 | E161: 0 | F161: 0.08 | G161: -682876.23 | I161: 2747.74 | K161: Claim on Cash | M161: =L157-M157+N157+O157 -> -468427.1
B162: 24 | E162: 0 | F162: 0.08 | G162: -238681.72 | H162: 495101.28 | I162: 50906.77 | M162: -
B163: 25 | E163: 0 | F163: 0.08 | G163: -238682.77 | I163: 1.05 | K163: Difference | M163: =M159-M161 -> 0
B164: 26 | E164: 0 | F164: 0.08 | G164: -238682.77
B165: 27 | E165: 0 | F165: 0.08 | G165: -237491.17 | I165: -1191.6
B166: 28 | E166: 0 | F166: 0.08 | G166: -288853.82 | I166: 51362.65
B167: 29 | E167: 0 | F167: 0.08 | G167: -290250.97 | I167: 1397.15
B168: 30 | E168: 0 | F168: 0.08 | G168: -468427.1 | I168: 178176.13
E169: - | H169: - | I169: -
E170: =SUM(E139:E168) -> 0 | H170: =SUM(H139:H168) -> 495101.28 | I170: =SUM(I139:I168) -> 474622.79
A181: Interest YTD
A182: |:: | E182: =E170+E137 -> 0
A183: May
B184: 1 | C184: =C139 -> 2015 | E184: =ROUND(IF(G184<0,0,(G184*(F184/365))/100),2) -> 0 | F184: =DHHS!G154 -> 0.08 | G184: =G168+H184-I184 -> -471784.65 | I184: 3357.55 | K184: R0110000 | M184: 691170.97
B185: =B184+1 -> 2 | E185: 0 | F185: =DHHS!G155 -> 0.08 | G185: =G184+H185-I185 -> -471784.65 | K185: R0112223 | N185: -675
B186: 3 | E186: 0 | F186: =DHHS!G156 -> 0.08 | G186: =G185+H186-I186 -> -471784.65 | K186: R0112251 | N186: -221
B187: 4 | E187: 0 | F187: =DHHS!G157 -> 0.08 | G187: -474096.18 | I187: 2311.53
B188: 5 | E188: 0 | F188: =DHHS!G158 -> 0.08 | G188: -476401.69 | I188: 2305.51
B189: 6 | E189: 0 | F189: =DHHS!G159 -> 0.08 | G189: -477780.57 | I189: 1378.88
B190: 7 | E190: 0 | F190: =DHHS!G160 -> 0.08 | G190: -486107.72 | I190: 8327.15
B191: 8 | E191: 0 | F191: =DHHS!G161 -> 0.08 | G191: -571852.15 | I191: 85744.43
B192: 9 | E192: 0 | F192: =DHHS!G162 -> 0.08 | G192: -571852.15
B193: 10 | E193: 0 | F193: =DHHS!G163 -> 0.08 | G193: -572223.15 | I193: 371
B194: 11 | E194: 0 | F194: =DHHS!G164 -> 0.08 | G194: -546255.61 | I194: -25967.54
B195: 12 | E195: 0 | F195: =DHHS!G165 -> 0.08 | G195: -559767.72 | I195: 13512.11
B196: 13 | E196: 0 | F196: =DHHS!G166 -> 0.08 | G196: -564722.54 | I196: 4954.82
B197: 14 | E197: 0 | F197: =DHHS!G167 -> 0.08 | G197: -567666.26 | I197: 2943.72
B198: 15 | E198: 0 | F198: =DHHS!G168 -> 0.08 | G198: -570746.79 | I198: 3080.53
B199: 16 | E199: 0 | F199: =DHHS!G169 -> 0.08 | G199: -572012.29 | I199: 1265.5
B200: 17 | E200: 0 | F200: =DHHS!G170 -> 0.08 | G200: -580496.56 | I200: 8484.27
B201: 18 | E201: 0 | F201: =DHHS!G171 -> 0.08 | G201: -584144.28 | I201: 3647.72
B202: 19 | E202: 0 | F202: =DHHS!G172 -> 0.08 | G202: -617837.15 | I202: 33692.87
B203: 20 | E203: 0 | F203: =DHHS!G173 -> 0.08 | G203: -594934.92 | I203: -22902.23
B204: 21 | E204: 0 | F204: =DHHS!G174 -> 0.08 | G204: -617641.67 | I204: 22706.75
B205: 22 | E205: 0 | F205: =DHHS!G175 -> 0.08 | G205: -237412.31 | H205: 475386.2 | I205: 95156.84
B206: 23 | E206: 0 | F206: =DHHS!G176 -> 0.08 | G206: -237412.31
B207: 24 | E207: 0 | F207: =DHHS!G177 -> 0.08 | G207: -237412.31
B208: 25 | E208: 0 | F208: =DHHS!G178 -> 0.08 | G208: -237417.48 | I208: 5.17
B209: 26 | E209: 0 | F209: =DHHS!G179 -> 0.08 | G209: -240259.73 | I209: 2842.25
B210: 27 | E210: 0 | F210: =DHHS!G180 -> 0.08 | G210: -259619.93 | I210: 19360.2
B211: 28 | E211: 0 | F211: =DHHS!G181 -> 0.08 | G211: -295812.82 | I211: 36192.89 | K211: - | L211: - | M211: - | N211: - | O211: -
B212: 29 | E212: 0 | F212: =DHHS!G182 -> 0.08 | G212: -297119.24 | I212: 1306.42 | K212: TOTALS: | L212: =SUM(L167:L211) -> 0 | M212: =SUM(M168:M211) -> 691170.97 | N212: =SUM(N168:N211) -> -896 | O212: =SUM(O169:O211) -> 0
B213: 30 | E213: 0 | F213: =DHHS!G183 -> 0.08 | G213: -297119.24
B214: 31 | E214: 0 | F214: =DHHS!G184 -> 0.08 | G214: -692066.97 | I214: 394947.73 | K214: Balance | M214: =G214 -> -692066.97
E215: - | H215: - | I215: -
E216: =SUM(E184:E214) -> 0 | H216: =SUM(H184:H214) -> 475386.2 | I216: =SUM(I184:I214) -> 699026.07 | K216: Claim on Cash | M216: =L212-M212+N212+O212 -> -692066.97
M217: -
K218: Difference | M218: =M214-M216+M215 -> 6.98491931e-10
A221: Interest YTD
A222: |:: | E222: =E216+E182 -> 0
A223: Jun
B224: 1 | C224: =C184 -> 2015 | E224: =ROUND(IF(G224<0,0,(G224*(F224/365))/100),2) -> 0 | F224: =DHHS!$G$191 -> 0.08 | G224: =G214+H224-I224 -> -721088.2 | I224: 29021.23 | K224: R0110000 | M224: =ABS(-914019.94) -> 914019.94
B225: =B224+1 -> 2 | E225: 0 | F225: =DHHS!$G$192 -> 0.08 | G225: =G224+H225-I225 -> -728716.26 | I225: 7628.06 | K225: R0112223 | N225: -9675
B226: 3 | E226: 0 | F226: =DHHS!$G$193 -> 0.08 | G226: -732717.1 | I226: 4000.84 | K226: R0112242 | N226: -5818.18
B227: 4 | E227: 0 | F227: =DHHS!$G$194 -> 0.08 | G227: -732818.04 | I227: 100.94 | K227: R0112251 | N227: -13736.39
B228: 5 | E228: 0 | F228: =DHHS!$G$195 -> 0.08 | G228: -817370.39 | I228: 84552.35 | K228: R0112262 | N228: -4087.26
B229: 6 | E229: 0 | F229: =DHHS!$G$196 -> 0.08 | G229: -817370.39 | K229: R0112280 | N229: -2833.33
B230: 7 | E230: 0 | F230: =DHHS!$G$197 -> 0.08 | G230: -817370.39 | K230: R0112289 | N230: -22396.81
... 247 more rows

Sheet DED
A1: DED Letters of Credit | L1: 1010 | N1: 2000 | O1: 2210 or 2220 | Q1: \E | R1: {?}{D}{BRANCH \E}
K2: Claim on Cash Balances
H3: R0130000 | I3: R0130000 | N3: Accounts | O3: Payroll | Q3: \D | R3: {?}/100~{EDIT}{CALC}~{D}{BRANCH \D}
B4: DATE | E4: INTEREST | F4: RATE | G4: Balance | H4: Cash Receipts | I4: Expenditures | K4: Acct # | L4: Debits | M4: Credits | N4: Payable | O4: Accruals
A5: - | B5: - | C5: - | D5: - | E5: - | F5: - | G5: - | H5: - | I5: - | J5: - | K5: - | L5: - | M5: - | N5: - | O5: -
A6: BALANCE FORWARD | G6: -57754.55
A7: Jan | B7: 1 | C7: 2015 | E7: =ROUND(IF(G7<0,0,(G7*(F7/365))/100),2) -> 0 | F7: =DHHS!G9 -> 0.1 | G7: =+G6+H7-I7 -> -57470.33 | I7: -284.22 | K7: R0130000 | M7: 74511.45
B8: =B7+1 -> 2 | E8: 0 | F8: =DHHS!G10 -> 0.1 | G8: =G7+H8-I8 -> -58091.67 | I8: 621.34
B9: 3 | E9: 0 | F9: =DHHS!G11 -> 0.1 | G9: -58091.67
B10: 4 | E10: 0 | F10: =DHHS!G12 -> 0.1 | G10: -58091.67
B11: 5 | E11: 0 | F11: =DHHS!G13 -> 0.1 | G11: -58091.67
B12: 6 | E12: 0 | F12: =DHHS!G14 -> 0.1 | G12: -58091.67
B13: 7 | E13: 0 | F13: =DHHS!G15 -> 0.1 | G13: -58091.67
B14: 8 | E14: 0 | F14: =DHHS!G16 -> 0.1 | G14: -58091.67
B15: 9 | E15: 0 | F15: =DHHS!G17 -> 0.1 | G15: -58091.67
B16: 10 | E16: 0 | F16: =DHHS!G18 -> 0.1 | G16: -58091.67
B17: 11 | E17: 0 | F17: =DHHS!G19 -> 0.1 | G17: -58091.67
B18: 12 | E18: 0 | F18: =DHHS!G20 -> 0.1 | G18: -58091.67
B19: 13 | E19: 0 | F19: =DHHS!G21 -> 0.1 | G19: =G18+H19-I19 -> -58091.67
B20: 14 | E20: 0 | F20: =DHHS!G22 -> 0.1 | G20: -58091.67
B21: 15 | E21: 0 | F21: =DHHS!G23 -> 0.1 | G21: -58091.67
B22: 16 | E22: 0 | F22: =DHHS!G24 -> 0.1 | G22: =G21+H22-I22 -> -59973.26 | I22: 1881.59
B23: 17 | E23: 0 | F23: =DHHS!G25 -> 0.1 | G23: -59973.26
B24: 18 | E24: 0 | F24: =DHHS!G26 -> 0.1 | G24: -61223.1 | I24: 1249.84
B25: 19 | E25: 0 | F25: =DHHS!G27 -> 0.1 | G25: -61223.1
B26: 20 | E26: 0 | F26: =DHHS!G28 -> 0.1 | G26: -61223.09 | I26: -0.01
B27: 21 | E27: 0 | F27: =DHHS!G29 -> 0.1 | G27: -61223.09
B28: 22 | E28: 0 | F28: =DHHS!G30 -> 0.1 | G28: -61223.09
B29: 23 | E29: 0 | F29: =DHHS!G31 -> 0.1 | G29: -61223.09
B30: 24 | E30: 0 | F30: =DHHS!G32 -> 0.1 | G30: =G29+H30-I30 -> -61223.09
B31: 25 | E31: 0 | F31: =DHHS!G33 -> 0.1 | G31: =G30+H31-I31 -> -61223.09
B32: 26 | E32: 0 | F32: =DHHS!G34 -> 0.1 | G32: -61223.09 | L32: - | M32: - | N32: - | O32: -
B33: 27 | E33: 0 | F33: =DHHS!G35 -> 0.1 | G33: -61223.09 | K33: TOTALS: | L33: =SUM(L7:L32) -> 0 | M33: =SUM(M7:M32) -> 74511.45 | N33: =SUM(N7:N32) -> 0 | O33: =SUM(O7:O32) -> 0
B34: 28 | E34: 0 | F34: =DHHS!G36 -> 0.1 | G34: -61223.09
B35: 29 | E35: 0 | F35: =DHHS!G37 -> 0.1 | G35: -61223.09 | K35: Balance | M35: =G37 -> -74511.45
B36: 30 | E36: 0 | F36: =DHHS!G38 -> 0.1 | G36: -63414.62 | I36: 2191.53
B37: 31 | E37: 0 | F37: =DHHS!G39 -> 0.1 | G37: =G36+H37-I37 -> -74511.45 | I37: 11096.83 | K37: Claim on Cash | M37: =L33-M33+N33+O33 -> -74511.45
E38: - | H38: - | I38: - | M38: -
E39: =SUM(E7:E37) -> 0 | H39: =SUM(H7:H37) -> 0 | I39: =SUM(I7:I37) -> 16756.9 | K39: Difference | M39: =M35-M36-M37 -> 0
A41: Interest YTD | E41: =E39 -> 0
A43: Feb | B43: 1 | C43: =C7 -> 2015 | E43: =ROUND(IF(G43<0,0,(G43*(F43/365))/100),2) -> 0 | F43: =DHHS!$G$46 -> 0.1 | G43: =G37+H43-I43 -> -74511.45 | K43: R0130000 | M43: 45148.67
B44: =B43+1 -> 2 | E44: 0 | F44: =DHHS!$G$47 -> 0.1 | G44: =G43+H44-I44 -> -19156.05 | H44: 55355.4
B45: 3 | E45: 0 | F45: =DHHS!$G$48 -> 0.1 | G45: -19156.05
B46: 4 | E46: 0 | F46: =DHHS!$G$49 -> 0.1 | G46: -24777.05 | I46: 5621
B47: 5 | E47: 0 | F47: =DHHS!$G$50 -> 0.1 | G47: -24777.05 | I47: 0
B48: 6 | E48: 0 | F48: =DHHS!$G$51 -> 0.1 | G48: -24777.05
B49: 7 | E49: 0 | F49: =DHHS!$G$52 -> 0.1 | G49: -24777.05
B50: 8 | E50: 0 | F50: =DHHS!$G$53 -> 0.1 | G50: -24777.05
B51: 9 | E51: 0 | F51: =DHHS!$G$54 -> 0.1 | G51: -39227.05 | I51: 14450
B52: 10 | E52: 0 | F52: =DHHS!$G$55 -> 0.1 | G52: -39227.05 | I52: 0
B53: 11 | E53: 0 | F53: =DHHS!$G$56 -> 0.1 | G53: -39227.05
B54: 12 | E54: 0 | F54: =DHHS!$G$57 -> 0.1 | G54: -43185.25 | I54: 3958.2
B55: 13 | E55: 0 | F55: =DHHS!$G$58 -> 0.08 | G55: -45964.71 | I55: 2779.46
B56: 14 | E56: 0 | F56: =DHHS!$G$59 -> 0.08 | G56: -45964.71
B57: 15 | E57: 0 | F57: =DHHS!$G$60 -> 0.08 | G57: -45964.71
B58: 16 | E58: 0 | F58: =DHHS!$G$61 -> 0.08 | G58: -45964.71
B59: 17 | E59: 0 | F59: =DHHS!$G$62 -> 0.08 | G59: -46393.64 | I59: 428.93
B60: 18 | E60: 0 | F60: =DHHS!$G$63 -> 0.08 | G60: -46393.64
B61: 19 | E61: 0 | F61: =DHHS!$G$64 -> 0.08 | G61: -46393.64
B62: 20 | E62: 0 | F62: =DHHS!$G$65 -> 0.08 | G62: -46393.64
B63: 21 | E63: 0 | F63: =DHHS!$G$66 -> 0.08 | G63: -46393.64
B64: 22 | E64: 0 | F64: =DHHS!$G$67 -> 0.08 | G64: -46393.64
B65: 23 | E65: 0 | F65: =DHHS!$G$68 -> 0.08 | G65: -46393.64
B66: 24 | E66: 0 | F66: =DHHS!$G$69 -> 0.08 | G66: -46393.64 | L66: - | M66: - | N66: - | O66: -
B67: 25 | E67: 0 | F67: =DHHS!$G$70 -> 0.08 | G67: -29858.9 | H67: 16534.74 | K67: TOTALS: | L67: =SUM(L43:L65) -> 0 | M67: =SUM(M43:M65) -> 45148.67 | N67: =SUM(N43:N65) -> 0 | O67: =SUM(O43:O65) -> 0
B68: 26 | E68: 0 | F68: =DHHS!$G$71 -> 0.08 | G68: -30333.9 | I68: 475
B69: 27 | E69: 0 | F69: =DHHS!$G$72 -> 0.08 | G69: =G68+H69-I69 -> -32935.33 | I69: 2601.43 | K69: Balance | M69: =G70 -> -45148.67
B70: 28 | E70: 0 | F70: =DHHS!$G$73 -> 0.08 | G70: =G69+H70-I70 -> -45148.67 | I70: 12213.34
K71: Claim on Cash | M71: =L67-M67+N67+O67 -> -45148.67
E72: - | H72: - | I72: - | M72: -
E73: =SUM(E43:E70) -> 0 | H73: =SUM(H43:H70) -> 71890.14 | I73: =SUM(I43:I70) -> 42527.36 | K73: Difference | M73: =M69-M71-M70 -> 2.910383046e-11
A75: Interest YTD | E75: =E73+E41 -> 0
A76: |::
A77: Mar | B77: 1 | C77: =C43 -> 2015 | E77: =ROUND(IF(G77<0,0,(G77*(F77/365))/100),2) -> 0 | F77: =DHHS!$G$81 -> 0.08 | G77: =+G70+H77-I77 -> -45148.67 | K77: R0130000 | M77: 29615.8
B78: =B77+1 -> 2 | E78: 0 | F78: =DHHS!$G$82 -> 0.08 | G78: =G77+H78-I78 -> -45148.67
B79: 3 | E79: 0 | F79: =DHHS!$G$83 -> 0.08 | G79: -45148.67
B80: 4 | E80: 0 | F80: =DHHS!$G$84 -> 0.08 | G80: -45148.67
B81: 5 | E81: 0 | F81: =DHHS!$G$85 -> 0.08 | G81: -45294.92 | I81: 146.25
B82: 6 | E82: 0 | F82: =DHHS!$G$86 -> 0.08 | G82: -45294.92
B83: 7 | E83: 0 | F83: =DHHS!$G$87 -> 0.08 | G83: =G82+H83-I83 -> -45294.92
B84: 8 | E84: 0 | F84: =DHHS!$G$88 -> 0.08 | G84: -47226.51 | I84: 1931.59
B85: 9 | E85: 0 | F85: =DHHS!$G$89 -> 0.08 | G85: -47226.51
B86: 10 | E86: 0 | F86: =DHHS!$G$90 -> 0.08 | G86: -47226.51
B87: 11 | E87: 0 | F87: =DHHS!$G$91 -> 0.08 | G87: -52026.51 | I87: 4800
B88: 12 | E88: 0 | F88: =DHHS!$G$92 -> 0.08 | G88: -52026.51
B89: 13 | E89: 0 | F89: =DHHS!$G$93 -> 0.08 | G89: -54336.49 | I89: 2309.98
B90: 14 | E90: 0 | F90: =DHHS!$G$94 -> 0.08 | G90: -54336.49
B91: 15 | E91: 0 | F91: =DHHS!$G$95 -> 0.08 | G91: -55253.33 | I91: 916.84
B92: 16 | E92: 0 | F92: =DHHS!$G$96 -> 0.08 | G92: -55253.33
B93: 17 | E93: 0 | F93: =DHHS!$G$97 -> 0.08 | G93: -55351.83 | I93: 98.5
B94: 18 | E94: 0 | F94: =DHHS!$G$98 -> 0.08 | G94: -55351.83
B95: 19 | E95: 0 | F95: =DHHS!$G$99 -> 0.08 | G95: -55351.83
B96: 20 | E96: 0 | F96: =DHHS!$G$100 -> 0.08 | G96: -12602.3 | H96: 42749.53
B97: 21 | E97: 0 | F97: =DHHS!$G$101 -> 0.08 | G97: -12602.3
B98: 22 | E98: 0 | F98: =DHHS!$G$102 -> 0.08 | G98: -13160 | I98: 557.7
B99: 23 | E99: 0 | F99: =DHHS!$G$103 -> 0.08 | G99: -13160
B100: 24 | E100: 0 | F100: =DHHS!$G$104 -> 0.08 | G100: -13160
B101: 25 | E101: 0 | F101: =DHHS!$G$105 -> 0.08 | G101: -13160
B102: 26 | E102: 0 | F102: =DHHS!$G$106 -> 0.08 | G102: -13160 | K102: - | L102: - | M102: - | N102: - | O102: -
B103: 27 | E103: 0 | F103: =DHHS!$G$107 -> 0.08 | G103: -15731.89 | I103: 2571.89 | K103: TOTALS | L103: =SUM(L77:L102) -> 0 | M103: =SUM(M77:M102) -> 29615.8 | N103: =SUM(N77:N102) -> 0 | O103: =SUM(O77:O102) -> 0
B104: 28 | E104: 0 | F104: =DHHS!$G$108 -> 0.08 | G104: -15731.89
B105: 29 | E105: 0 | F105: =DHHS!$G$109 -> 0.08 | G105: -15731.89 | K105: Balance | M105: =G107 -> -29615.8
B106: 30 | E106: 0 | F106: =DHHS!$G$110 -> 0.08 | G106: -15731.89
B107: 31 | E107: 0 | F107: =DHHS!$G$111 -> 0.08 | G107: -29615.8 | I107: 13883.91 | K107: Claim on Cash | M107: =L103-M103+N103+O103 -> -29615.8
E108: - | H108: - | I108: - | M108: -
E109: =SUM(E77:E107) -> 0 | H109: =SUM(H77:H107) -> 42749.53 | I109: =SUM(I77:I107) -> 27216.66 | K109: Difference | M109: =M105+M106-M107 -> 4.365574569e-11
A111: Interest YTD | E111: =E109+E75 -> 0
A112: |::
A113: Apr | B113: 1 | C113: =C77 -> 2015 | E113: =ROUND(IF(G113<0,0,(G113*(F113/365))/100),2) -> 0 | F113: =DHHS!$G$118 -> 0.08 | G113: =G107+H113-I113 -> -31535.44 | I113: 1919.64 | K113: R0130000 | M113: 24995.48
B114: =B113+1 -> 2 | E114: 0 | F114: =DHHS!$G$119 -> 0.08 | G114: =G113+H114-I114 -> -31535.44 | K114: R0132023 | N114: -5000
B115: 3 | E115: 0 | F115: =DHHS!$G$120 -> 0.08 | G115: -31535.44
B116: 4 | E116: 0 | F116: =DHHS!$G$121 -> 0.08 | G116: -31535.44
B117: 5 | E117: 0 | F117: =DHHS!$G$122 -> 0.08 | G117: -31535.44
B118: 6 | E118: 0 | F118: =DHHS!$G$123 -> 0.08 | G118: -31535.44
B119: 7 | E119: 0 | F119: =DHHS!$G$124 -> 0.08 | G119: -31535.44
B120: 8 | E120: 0 | F120: =DHHS!$G$125 -> 0.08 | G120: -33182.2 | I120: 1646.76
B121: 9 | E121: 0 | F121: =DHHS!$G$126 -> 0.08 | G121: -33182.2
B122: 10 | E122: 0 | F122: =DHHS!$G$127 -> 0.08 | G122: -35759.48 | I122: 2577.28
B123: 11 | E123: 0 | F123: =DHHS!$G$128 -> 0.08 | G123: -35759.48
B124: 12 | E124: 0 | F124: =DHHS!$G$129 -> 0.08 | G124: -35759.48
B125: 13 | E125: 0 | F125: =DHHS!$G$130 -> 0.08 | G125: -35759.48
B126: 14 | E126: 0 | F126: =DHHS!$G$131 -> 0.08 | G126: =G125+H126-I126 -> -35759.48
B127: 15 | E127: 0 | F127: =DHHS!$G$132 -> 0.08 | G127: -35759.48
B128: 16 | E128: 0 | F128: =DHHS!$G$133 -> 0.08 | G128: -35759.48
B129: 17 | E129: 0 | F129: =DHHS!$G$134 -> 0.08 | G129: -35809.48 | I129: 50
B130: 18 | E130: 0 | F130: =DHHS!$G$135 -> 0.08 | G130: -35809.48
B131: 19 | E131: 0 | F131: =DHHS!$G$136 -> 0.08 | G131: -36508.98 | I131: 699.5
B132: 20 | E132: 0 | F132: =DHHS!$G$137 -> 0.08 | G132: -36508.98
B133: 21 | E133: 0 | F133: =DHHS!$G$138 -> 0.08 | G133: -37696.43 | I133: 1187.45
B134: 22 | E134: 0 | F134: =DHHS!$G$139 -> 0.08 | G134: -37696.43
B135: 23 | E135: 0 | F135: =DHHS!$G$140 -> 0.08 | G135: -10479.77 | H135: 27216.66
B136: 24 | E136: 0 | F136: =DHHS!$G$141 -> 0.08 | G136: -12672.65 | I136: 2192.88
B137: 25 | E137: 0 | F137: =DHHS!$G$142 -> 0.08 | G137: -12672.65 | K137: - | L137: - | M137: - | N137: - | O137: -
B138: 26 | E138: 0 | F138: =DHHS!$G$143 -> 0.08 | G138: -12672.65 | K138: TOTALS: | L138: =SUM(L113:L137) -> 0 | M138: =SUM(M113:M137) -> 24995.48 | N138: =SUM(N113:N137) -> -5000 | O138: =SUM(O113:O137) -> 0
B139: 27 | E139: 0 | F139: =DHHS!$G$144 -> 0.08 | G139: -12672.65
B140: 28 | E140: 0 | F140: =DHHS!$G$145 -> 0.08 | G140: -12672.65 | K140: Balance | M140: =G142 -> -29995.48
B141: 29 | E141: 0 | F141: =DHHS!$G$146 -> 0.08 | G141: -12672.65
B142: 30 | E142: 0 | F142: =DHHS!$G$147 -> 0.08 | G142: -29995.48 | I142: 17322.83 | K142: Claim on Cash | M142: =L138-M138+N138+O138+M141 -> -29995.48
E143: - | H143: - | I143: - | M143: -
E144: =SUM(E113:E142) -> 0 | H144: =SUM(H113:H142) -> 27216.66 | I144: =SUM(I113:I142) -> 27596.34 | K144: Difference | M144: =M140-M142 -> 5.09317033e-11
A146: Interest YTD | E146: =E144+E111 -> 0
A147: |::
A148: May | B148: 1 | C148: =C113 -> 2015 | E148: =ROUND(IF(G148<0,0,(G148*(F148/365))/100),2) -> 0 | F148: =DHHS!$G$154 -> 0.08 | G148: =+G142+H148-I148 -> -29995.48
B149: =B148+1 -> 2 | E149: 0 | F149: =DHHS!$G$155 -> 0.08 | G149: =+G148+H149-I149 -> -29995.48
B150: 3 | E150: 0 | F150: =DHHS!$G$156 -> 0.08 | G150: =+G149+H150-I150 -> -29995.48
B151: 4 | E151: 0 | F151: =DHHS!$G$157 -> 0.08 | G151: -30744.68 | I151: 749.2
B152: 5 | E152: 0 | F152: =DHHS!$G$158 -> 0.08 | G152: -30744.68
B153: 6 | E153: 0 | F153: =DHHS!$G$159 -> 0.08 | G153: -30744.68
B154: 7 | E154: 0 | F154: =DHHS!$G$160 -> 0.08 | G154: -30744.68
B155: 8 | E155: 0 | F155: =DHHS!$G$161 -> 0.08 | G155: -33500.31 | I155: 2755.63
B156: 9 | E156: 0 | F156: =DHHS!$G$162 -> 0.08 | G156: -33500.31
B157: 10 | E157: 0 | F157: =DHHS!$G$163 -> 0.08 | G157: -33500.31
B158: 11 | E158: 0 | F158: =DHHS!$G$164 -> 0.08 | G158: -33500.31
B159: 12 | E159: 0 | F159: =DHHS!$G$165 -> 0.08 | G159: -36546.06 | I159: 3045.75
B160: 13 | E160: 0 | F160: =DHHS!$G$166 -> 0.08 | G160: -36546.06
B161: 14 | E161: 0 | F161: =DHHS!$G$167 -> 0.08 | G161: -37479.06 | I161: 933
B162: 15 | E162: 0 | F162: =DHHS!$G$168 -> 0.08 | G162: -57439.06 | I162: 19960
B163: 16 | E163: 0 | F163: =DHHS!$G$169 -> 0.08 | G163: -57439.06
B164: 17 | E164: 0 | F164: =DHHS!$G$170 -> 0.08 | G164: -62454.88 | I164: 5015.82
B165: 18 | E165: 0 | F165: =DHHS!$G$171 -> 0.08 | G165: -67294.88 | I165: 4840
B166: 19 | E166: 0 | F166: =DHHS!$G$172 -> 0.08 | G166: -67294.88
B167: 20 | E167: 0 | F167: =DHHS!$G$173 -> 0.08 | G167: -67294.88
B168: 21 | E168: 0 | F168: =DHHS!$G$174 -> 0.08 | G168: -67294.88
B169: 22 | E169: 0 | F169: =DHHS!$G$175 -> 0.08 | G169: -42473.34 | H169: 27596.34 | I169: 2774.8
B170: 23 | E170: 0 | F170: =DHHS!$G$176 -> 0.08 | G170: -42473.34
B171: 24 | E171: 0 | F171: =DHHS!$G$177 -> 0.08 | G171: -42473.34
B172: 25 | E172: 0 | F172: =DHHS!$G$178 -> 0.08 | G172: -42473.34
B173: 26 | E173: 0 | F173: =DHHS!$G$179 -> 0.08 | G173: -42473.34 | K173: - | L173: - | M173: - | N173: - | O173: -
B174: 27 | E174: 0 | F174: =DHHS!$G$180 -> 0.08 | G174: -42473.34 | K174: TOTALS: | L174: =SUM(L148:L173) -> 0 | M174: =SUM(M148:M173) -> 0 | N174: =SUM(N148:N173) -> 0 | O174: =SUM(O148:O173) -> 0
B175: 28 | E175: 0 | F175: =DHHS!$G$181 -> 0.08 | G175: -42473.34
B176: 29 | E176: 0 | F176: =DHHS!$G$182 -> 0.08 | G176: -42634.34 | I176: 161
B177: 30 | E177: 0 | F177: =DHHS!$G$183 -> 0.08 | G177: -42634.34
B178: 31 | E178: 0 | F178: =DHHS!$G$184 -> 0.08 | G178: -57662.91 | I178: 15028.57 | K178: Balance | M178: =G178 -> -57662.91
E179: - | H179: - | I179: -
E180: =SUM(E148:E178) -> 0 | H180: =SUM(H148:H178) -> 27596.34 | I180: =SUM(I148:I178) -> 55263.77 | K180: Claim on Cash | M180: =L174+M174-N174-O174-M179 -> 0
M181: -
A182: Interest YTD | E182: =E180+E146 -> 0 | K182: Difference | M182: =M178+M180 -> -57662.91
A184: |::
A185: Jun | B185: 1 | C185: =C148 -> 2015 | E185: =ROUND(IF(G185<0,0,(G185*(F185/365))/100),2) -> 0 | F185: =DHHS!$G$191 -> 0.08 | G185: =G178+H185-I185 -> -57662.91 | K185: R0130000 | M185: 70767.75
B186: =B185+1 -> 2 | E186: 0 | F186: =DHHS!$G$192 -> 0.08 | G186: =G185+H186-I186 -> -57662.91
B187: 3 | E187: 0 | F187: =DHHS!$G$193 -> 0.08 | G187: =G186+H187-I187 -> -59192.37 | I187: 1529.46
B188: 4 | E188: 0 | F188: =DHHS!$G$194 -> 0.08 | G188: -60572.61 | I188: 1380.24
B189: 5 | E189: 0 | F189: =DHHS!$G$195 -> 0.08 | G189: -63280.63 | I189: 2708.02
B190: 6 | E190: 0 | F190: =DHHS!$G$196 -> 0.08 | G190: -63280.63
B191: 7 | E191: 0 | F191: =DHHS!$G$197 -> 0.08 | G191: -63280.63
B192: 8 | E192: 0 | F192: =DHHS!$G$198 -> 0.08 | G192: -63484.38 | I192: 203.75
B193: 9 | E193: 0 | F193: =DHHS!$G$199 -> 0.08 | G193: -63484.38
B194: 10 | E194: 0 | F194: =DHHS!$G$200 -> 0.08 | G194: -63484.38
B195: 11 | E195: 0 | F195: =DHHS!$G$201 -> 0.08 | G195: -67384.12 | I195: 3899.74
B196: 12 | E196: 0 | F196: =DHHS!$G$202 -> 0.08 | G196: -68589.7 | I196: 1205.58
B197: 13 | E197: 0 | F197: =DHHS!$G$203 -> 0.08 | G197: -68589.7
B198: 14 | E198: 0 | F198: =DHHS!$G$204 -> 0.08 | G198: -68589.7
B199: 15 | E199: 0 | F199: =DHHS!$G$205 -> 0.08 | G199: -68589.7
B200: 16 | E200: 0 | F200: =DHHS!$G$206 -> 0.08 | G200: -69366.7 | I200: 777
B201: 17 | E201: 0 | F201: =DHHS!$G$207 -> 0.08 | G201: -69366.7
B202: 18 | E202: 0 | F202: =DHHS!$G$208 -> 0.08 | G202: -14102.93 | H202: 55263.77
B203: 19 | E203: 0 | F203: =DHHS!$G$209 -> 0.08 | G203: -16882.68 | I203: 2779.75
B204: 20 | E204: 0 | F204: =DHHS!$G$210 -> 0.08 | G204: -16882.68
B205: 21 | E205: 0 | F205: =DHHS!$G$211 -> 0.08 | G205: -16882.68
B206: 22 | E206: 0 | F206: =DHHS!$G$212 -> 0.08 | G206: -16882.68
... 220 more rows

Sheet USDA
A1: USDA Letters of Credit | L1: 1010 | N1: 2000 | O1: 2210 or 2220 | Q1: \E | R1: {?}{D}{BRANCH \E}
K2: Claim on Cash Balances
H3: R0150000 | I3: R0150000 | N3: Accounts | O3: Payroll | Q3: \D | R3: {?}/100~{EDIT}{CALC}~{D}{BRANCH \D}
B4: DATE | E4: INTEREST | F4: RATE | G4: Balance | H4: Cash Receipts | I4: Expenditures | K4: Acct # | L4: Debits | M4: Credits | N4: Payable | O4: Accruals
A5: - | B5: - | C5: - | D5: - | E5: - | F5: - | G5: - | H5: - | I5: - | J5: - | K5: - | L5: - | M5: - | N5: - | O5: -
A6: BALANCE FORWARD | G6: -2487.94
A7: Jan | B7: 1 | C7: 2015 | E7: =ROUND(IF(G7<0,0,(G7*(F7/365))/100),2) -> 0 | F7: =DHHS!G9 -> 0.1 | G7: =+G6+H7-I7 -> -2487.94 | K7: R0150000 | M7: 4301.82
B8: 2 | E8: 0 | F8: =DHHS!G10 -> 0.1 | G8: =G7+H8-I8 -> -2487.94
B9: 3 | E9: 0 | F9: =DHHS!G11 -> 0.1 | G9: -2487.94
B10: 4 | E10: 0 | F10: =DHHS!G12 -> 0.1 | G10: -2487.94
B11: 5 | E11: 0 | F11: =DHHS!G13 -> 0.1 | G11: -2487.94
B12: 6 | E12: 0 | F12: =DHHS!G14 -> 0.1 | G12: -2487.94
B13: 7 | E13: 0 | F13: =DHHS!G15 -> 0.1 | G13: -3061.25 | I13: 573.31
B14: 8 | E14: 0 | F14: =DHHS!G16 -> 0.1 | G14: -3061.25
B15: 9 | E15: 0 | F15: =DHHS!G17 -> 0.1 | G15: -3061.25
B16: 10 | E16: 0 | F16: =DHHS!G18 -> 0.1 | G16: -3061.25
B17: 11 | E17: 0 | F17: =DHHS!G19 -> 0.1 | G17: -3061.25
B18: 12 | E18: 0 | F18: =DHHS!G20 -> 0.1 | G18: -3061.25
B19: 13 | E19: 0 | F19: =DHHS!G21 -> 0.1 | G19: =G18+H19-I19 -> -3130.66 | I19: 69.41
B20: 14 | E20: 0 | F20: =DHHS!G22 -> 0.1 | G20: -3130.66
B21: 15 | E21: 0 | F21: =DHHS!G23 -> 0.1 | G21: -3130.66
B22: 16 | E22: 0 | F22: =DHHS!G24 -> 0.1 | G22: -3235.45 | I22: 104.79
B23: 17 | E23: 0 | F23: =DHHS!G25 -> 0.1 | G23: -3235.45
B24: 18 | E24: 0 | F24: =DHHS!G26 -> 0.1 | G24: -3235.45
B25: 19 | E25: 0 | F25: =DHHS!G27 -> 0.1 | G25: -3235.45
B26: 20 | E26: 0 | F26: =DHHS!G28 -> 0.1 | G26: -3909.85 | I26: 674.4
B27: 21 | E27: 0 | F27: =DHHS!G29 -> 0.1 | G27: -3909.85
B28: 22 | E28: 0 | F28: =DHHS!G30 -> 0.1 | G28: -4021.2 | I28: 111.35
B29: 23 | E29: 0 | F29: =DHHS!G31 -> 0.1 | G29: -4021.2
B30: 24 | E30: 0 | F30: =DHHS!G32 -> 0.1 | G30: -4021.2
B31: 25 | E31: 0 | F31: =DHHS!G33 -> 0.1 | G31: -4021.2
B32: 26 | E32: 0 | F32: =DHHS!G34 -> 0.1 | G32: -4021.2 | L32: - | M32: - | N32: - | O32: -
B33: 27 | E33: 0 | F33: =DHHS!G35 -> 0.1 | G33: -4021.2 | K33: TOTALS: | L33: =SUM(L7:L32) -> 0 | M33: =SUM(M7:M32) -> 4301.82 | N33: =SUM(N7:N32) -> 0 | O33: =SUM(O7:O32) -> 0
B34: 28 | E34: 0 | F34: =DHHS!G36 -> 0.1 | G34: -4118.75 | I34: 97.55
B35: 29 | E35: 0 | F35: =DHHS!G37 -> 0.1 | G35: -4118.75 | K35: Balance | M35: =G37 -> -4301.82
B36: 30 | E36: 0 | F36: =DHHS!G38 -> 0.1 | G36: -4301.82 | I36: 183.07
B37: 31 | E37: 0 | F37: =DHHS!G39 -> 0.1 | G37: -4301.82 | I37: 0 | K37: Claim on Cash | M37: =L33-M33+N33+O33 -> -4301.82
E38: - | H38: - | I38: - | M38: -
E39: =SUM(E7:E37) -> 0 | H39: =SUM(H7:H37) -> 0 | I39: =SUM(I7:I37) -> 1813.88 | K39: Difference | M39: =M35-M36-M37 -> 0
A41: Interest YTD | E41: =E39 -> 0
A43: Feb | B43: 1 | C43: =C7 -> 2015 | E43: =ROUND(IF(G43<0,0,(G43*(F43/365))/100),2) -> 0 | F43: =DHHS!$G$46 -> 0.1 | G43: =G37+H43-I43 -> -4301.82 | K43: R0150000 | M43: 1270.78
B44: 2 | E44: 0 | F44: =DHHS!$G$47 -> 0.1 | G44: =G43+H44-I44 -> -1813.88 | H44: 2487.94
B45: 3 | E45: 0 | F45: =DHHS!$G$48 -> 0.1 | G45: -1813.88
B46: 4 | E46: 0 | F46: =DHHS!$G$49 -> 0.1 | G46: -1813.88
B47: 5 | E47: 0 | F47: =DHHS!$G$50 -> 0.1 | G47: -1813.88
B48: 6 | E48: 0 | F48: =DHHS!$G$51 -> 0.1 | G48: -1875.88 | I48: 62
B49: 7 | E49: 0 | F49: =DHHS!$G$52 -> 0.1 | G49: -1875.88
B50: 8 | E50: 0 | F50: =DHHS!$G$53 -> 0.1 | G50: -1875.88
B51: 9 | E51: 0 | F51: =DHHS!$G$54 -> 0.1 | G51: -2098.08 | I51: 222.2
B52: 10 | E52: 0 | F52: =DHHS!$G$55 -> 0.1 | G52: -2098.08
B53: 11 | E53: 0 | F53: =DHHS!$G$56 -> 0.1 | G53: -2098.08
B54: 12 | E54: 0 | F54: =DHHS!$G$57 -> 0.1 | G54: -2098.08
B55: 13 | E55: 0 | F55: =DHHS!$G$58 -> 0.08 | G55: -2236.31 | I55: 138.23
B56: 14 | E56: 0 | F56: =DHHS!$G$59 -> 0.08 | G56: -2236.31
B57: 15 | E57: 0 | F57: =DHHS!$G$60 -> 0.08 | G57: -2236.31
B58: 16 | E58: 0 | F58: =DHHS!$G$61 -> 0.08 | G58: -2236.31
B59: 17 | E59: 0 | F59: =DHHS!$G$62 -> 0.08 | G59: -2236.31
B60: 18 | E60: 0 | F60: =DHHS!$G$63 -> 0.08 | G60: -2526.1 | I60: 289.79
B61: 19 | E61: 0 | F61: =DHHS!$G$64 -> 0.08 | G61: -2526.1
B62: 20 | E62: 0 | F62: =DHHS!$G$65 -> 0.08 | G62: -2911.53 | I62: 385.43
B63: 21 | E63: 0 | F63: =DHHS!$G$66 -> 0.08 | G63: -2911.53
B64: 22 | E64: 0 | F64: =DHHS!$G$67 -> 0.08 | G64: -2911.53
B65: 23 | E65: 0 | F65: =DHHS!$G$68 -> 0.08 | G65: -2911.53
B66: 24 | E66: 0 | F66: =DHHS!$G$69 -> 0.08 | G66: -2911.53 | L66: - | M66: - | N66: - | O66: -
B67: 25 | E67: 0 | F67: =DHHS!$G$70 -> 0.08 | G67: -1191.45 | H67: 1813.88 | I67: 93.8 | K67: TOTALS: | L67: =SUM(L43:L65) -> 0 | M67: =SUM(M43:M65) -> 1270.78 | N67: =SUM(N43:N65) -> 0 | O67: =SUM(O43:O65) -> 0
B68: 26 | E68: 0 | F68: =DHHS!$G$71 -> 0.08 | G68: -1191.45
B69: 27 | E69: 0 | F69: =DHHS!$G$72 -> 0.08 | G69: -1270.78 | I69: 79.33 | K69: Balance | M69: =G70 -> -1270.78
B70: 28 | E70: =ROUND(IF(G70<0,0,(G70*(F70/365))/100),2) -> 0 | F70: =DHHS!$G$73 -> 0.08 | G70: -1270.78 | I70: 0
K71: Claim on Cash | M71: =L67-M67+N67+O67 -> -1270.78
E72: - | H72: - | I72: - | M72: -
E73: =SUM(E43:E72) -> 0 | H73: =SUM(H43:H71) -> 4301.82 | I73: =SUM(I43:I71) -> 1270.78 | K73: Difference | M73: =M69-M71-M70 -> 9.094947018e-13
A75: Interest YTD | E75: =E73+E39 -> 0
A76: |::
A77: Mar | B77: 1 | C77: =C43 -> 2015 | E77: =ROUND(IF(G77<0,0,(G77*(F77/365))/100),2) -> 0 | F77: =DHHS!$G$81 -> 0.08 | G77: =+G70+H77-I77 -> -1270.78 | K77: R0150000 | M77: 1394.31
B78: 2 | E78: =ROUND(IF(G78<0,0,(G78*(F78/365))/100),2) -> 0 | F78: =DHHS!$G$82 -> 0.08 | G78: =G77+H78-I78 -> -1270.78
B79: 3 | E79: =ROUND(IF(G79<0,0,(G79*(F79/365))/100),2) -> 0 | F79: =DHHS!$G$83 -> 0.08 | G79: -1270.78
B80: 4 | E80: =ROUND(IF(G80<0,0,(G80*(F80/365))/100),2) -> 0 | F80: =DHHS!$G$84 -> 0.08 | G80: -2122.78 | I80: 852
B81: 5 | E81: =ROUND(IF(G81<0,0,(G81*(F81/365))/100),2) -> 0 | F81: =DHHS!$G$85 -> 0.08 | G81: -2122.78
B82: 6 | E82: 0 | F82: =DHHS!$G$86 -> 0.08 | G82: -2122.78
B83: 7 | E83: 0 | F83: =DHHS!$G$87 -> 0.08 | G83: -2122.78
B84: 8 | E84: 0 | F84: =DHHS!$G$88 -> 0.08 | G84: -2122.78
B85: 9 | E85: 0 | F85: =DHHS!$G$89 -> 0.08 | G85: -2122.78
B86: 10 | E86: 0 | F86: =DHHS!$G$90 -> 0.08 | G86: -2122.78
B87: 11 | E87: 0 | F87: =DHHS!$G$91 -> 0.08 | G87: -2122.78
B88: 12 | E88: 0 | F88: =DHHS!$G$92 -> 0.08 | G88: -2228.42 | I88: 105.64
B89: 13 | E89: 0 | F89: =DHHS!$G$93 -> 0.08 | G89: -2228.42
B90: 14 | E90: 0 | F90: =DHHS!$G$94 -> 0.08 | G90: -2228.42
B91: 15 | E91: 0 | F91: =DHHS!$G$95 -> 0.08 | G91: -2228.42
B92: 16 | E92: 0 | F92: =DHHS!$G$96 -> 0.08 | G92: -2228.42
B93: 17 | E93: 0 | F93: =DHHS!$G$97 -> 0.08 | G93: -2228.42
B94: 18 | E94: 0 | F94: =DHHS!$G$98 -> 0.08 | G94: -2350.02 | I94: 121.6
B95: 19 | E95: 0 | F95: =DHHS!$G$99 -> 0.08 | G95: -2350.02
B96: 20 | E96: 0 | F96: =DHHS!$G$100 -> 0.08 | G96: -1079.24 | H96: 1270.78
B97: 21 | E97: 0 | F97: =DHHS!$G$101 -> 0.08 | G97: -1079.24
B98: 22 | E98: 0 | F98: =DHHS!$G$102 -> 0.08 | G98: -1079.24
B99: 23 | E99: 0 | F99: =DHHS!$G$103 -> 0.08 | G99: -1079.24
B100: 24 | E100: 0 | F100: =DHHS!$G$104 -> 0.08 | G100: -1079.24
B101: 25 | E101: 0 | F101: =DHHS!$G$105 -> 0.08 | G101: -1079.24
B102: 26 | E102: 0 | F102: =DHHS!$G$106 -> 0.08 | G102: -1138.62 | I102: 59.38 | K102: - | L102: - | M102: - | N102: - | O102: -
B103: 27 | E103: 0 | F103: =DHHS!$G$107 -> 0.08 | G103: -1138.62 | K103: TOTALS | L103: =SUM(L77:L102) -> 0 | M103: =SUM(M77:M102) -> 1394.31 | N103: =SUM(N77:N102) -> 0 | O103: =SUM(O77:O102) -> 0
B104: 28 | E104: 0 | F104: =DHHS!$G$108 -> 0.08 | G104: -1138.62
B105: 29 | E105: 0 | F105: =DHHS!$G$109 -> 0.08 | G105: -1229.82 | I105: 91.2 | K105: Balance | M105: =G107 -> -1394.31
B106: 30 | E106: 0 | F106: =DHHS!$G$110 -> 0.08 | G106: -1394.31 | I106: 164.49
B107: 31 | E107: 0 | F107: =DHHS!$G$111 -> 0.08 | G107: -1394.31 | K107: Claim on Cash | M107: =L103-M103+N103+O103 -> -1394.31
E108: - | H108: - | M108: -
E109: =SUM(E77:E108) -> 0 | H109: =SUM(H77:H107) -> 1270.78 | I109: =SUM(I77:I107) -> 1394.31 | K109: Difference | M109: =M105+M106-M107 -> 0
A111: Interest YTD | E111: =E109+E73+E39 -> 0
A112: |::
A113: Apr | B113: 1 | C113: =C77 -> 2015 | E113: =ROUND(IF(G113<0,0,(G113*(F113/365))/100),2) -> 0 | F113: =DHHS!$G$118 -> 0.08 | G113: =G107+H113-I113 -> -1394.31 | K113: R0150000 | M113: 643.46
B114: 2 | E114: =ROUND(IF(G114<0,0,(G114*(F114/365))/100),2) -> 0 | F114: =DHHS!$G$119 -> 0.08 | G114: =G113+H114-I114 -> -1394.31
B115: 3 | E115: =ROUND(IF(G115<0,0,(G115*(F115/365))/100),2) -> 0 | F115: =DHHS!$G$120 -> 0.08 | G115: -1394.31
B116: 4 | E116: 0 | F116: =DHHS!$G$121 -> 0.08 | G116: -1394.31
B117: 5 | E117: 0 | F117: =DHHS!$G$122 -> 0.08 | G117: -1394.31
B118: 6 | E118: 0 | F118: =DHHS!$G$123 -> 0.08 | G118: -1562.56 | I118: 168.25
B119: 7 | E119: 0 | F119: =DHHS!$G$124 -> 0.08 | G119: -1562.56
B120: 8 | E120: 0 | F120: =DHHS!$G$125 -> 0.08 | G120: -1562.56
B121: 9 | E121: 0 | F121: =DHHS!$G$126 -> 0.08 | G121: -1562.56
B122: 10 | E122: 0 | F122: =DHHS!$G$127 -> 0.08 | G122: -1638.37 | I122: 75.81
B123: 11 | E123: 0 | F123: =DHHS!$G$128 -> 0.08 | G123: -1638.37
B124: 12 | E124: 0 | F124: =DHHS!$G$129 -> 0.08 | G124: -1638.37
B125: 13 | E125: 0 | F125: =DHHS!$G$130 -> 0.08 | G125: -1638.37
B126: 14 | E126: 0 | F126: =DHHS!$G$131 -> 0.08 | G126: -1638.37
B127: 15 | E127: 0 | F127: =DHHS!$G$132 -> 0.08 | G127: -1718.82 | I127: 80.45
B128: 16 | E128: 0 | F128: =DHHS!$G$133 -> 0.08 | G128: -1718.82
B129: 17 | E129: 0 | F129: =DHHS!$G$134 -> 0.08 | G129: -1718.82
B130: 18 | E130: 0 | F130: =DHHS!$G$135 -> 0.08 | G130: -1718.82
B131: 19 | E131: 0 | F131: =DHHS!$G$136 -> 0.08 | G131: -1718.82
B132: 20 | E132: 0 | F132: =DHHS!$G$137 -> 0.08 | G132: -1718.82
B133: 21 | E133: 0 | F133: =DHHS!$G$138 -> 0.08 | G133: -1718.82
B134: 22 | E134: 0 | F134: =DHHS!$G$139 -> 0.08 | G134: -1718.82
B135: 23 | E135: 0 | F135: =DHHS!$G$140 -> 0.08 | G135: -613.22 | H135: 1394.31 | I135: 288.71
B136: 24 | E136: 0 | F136: =DHHS!$G$141 -> 0.08 | G136: -613.22
B137: 25 | E137: 0 | F137: =DHHS!$G$142 -> 0.08 | G137: -613.22 | K137: - | L137: - | M137: - | N137: - | O137: -
B138: 26 | E138: 0 | F138: =DHHS!$G$143 -> 0.08 | G138: -613.22 | K138: TOTALS: | L138: =SUM(L113:L137) -> 0 | M138: =SUM(M113:M137) -> 643.46 | N138: =SUM(N113:N137) -> 0 | O138: =SUM(O113:O137) -> 0
B139: 27 | E139: 0 | F139: =DHHS!$G$144 -> 0.08 | G139: -613.22
B140: 28 | E140: 0 | F140: =DHHS!$G$145 -> 0.08 | G140: -613.22 | K140: Balance | M140: =G142 -> -643.46
B141: 29 | E141: 0 | F141: =DHHS!$G$146 -> 0.08 | G141: -613.22
B142: 30 | E142: 0 | F142: =DHHS!$G$147 -> 0.08 | G142: -643.46 | I142: 30.24 | K142: Claim on Cash | M142: =L138-M138+N138+O138 -> -643.46
E143: - | H143: - | I143: - | M143: -
E144: =SUM(E112:E143) -> 0 | H144: =SUM(H113:H142) -> 1394.31 | I144: =SUM(I113:I142) -> 643.46 | K144: Difference | M144: =M140-M142 -> 1.136868377e-12
A146: Interest YTD | E146: =E144+E109+E73+E39 -> 0
A147: |::
A148: May | B148: 1 | C148: =C113 -> 2015 | E148: =ROUND(IF(G148<0,0,(G148*(F148/365))/100),2) -> 0 | F148: =DHHS!$G$154 -> 0.08 | G148: =G142+H148-I148 -> -643.46 | K148: R0150000 | M148: 2140.65
B149: 2 | E149: 0 | F149: =DHHS!$G$155 -> 0.08 | G149: =G148+H149-I149 -> -643.46
B150: 3 | E150: 0 | F150: =DHHS!$G$156 -> 0.08 | G150: -643.46
B151: 4 | E151: 0 | F151: =DHHS!$G$157 -> 0.08 | G151: -643.46
B152: 5 | E152: 0 | F152: =DHHS!$G$158 -> 0.08 | G152: -767.82 | I152: 124.36
B153: 6 | E153: 0 | F153: =DHHS!$G$159 -> 0.08 | G153: -769.03 | I153: 1.21
B154: 7 | E154: 0 | F154: =DHHS!$G$160 -> 0.08 | G154: -931.17 | I154: 162.14
B155: 8 | E155: 0 | F155: =DHHS!$G$161 -> 0.08 | G155: -931.17
B156: 9 | E156: 0 | F156: =DHHS!$G$162 -> 0.08 | G156: -931.17
B157: 10 | E157: 0 | F157: =DHHS!$G$163 -> 0.08 | G157: -931.17
B158: 11 | E158: 0 | F158: =DHHS!$G$164 -> 0.08 | G158: -931.17
B159: 12 | E159: 0 | F159: =DHHS!$G$165 -> 0.08 | G159: -931.17
B160: 13 | E160: 0 | F160: =DHHS!$G$166 -> 0.08 | G160: -931.17
B161: 14 | E161: 0 | F161: =DHHS!$G$167 -> 0.08 | G161: -931.17
B162: 15 | E162: 0 | F162: =DHHS!$G$168 -> 0.08 | G162: -931.17
B163: 16 | E163: 0 | F163: =DHHS!$G$169 -> 0.08 | G163: -931.17
B164: 17 | E164: 0 | F164: =DHHS!$G$170 -> 0.08 | G164: -931.17
B165: 18 | E165: 0 | F165: =DHHS!$G$171 -> 0.08 | G165: -931.17
B166: 19 | E166: 0 | F166: =DHHS!$G$172 -> 0.08 | G166: -931.17
B167: 20 | E167: 0 | F167: =DHHS!$G$173 -> 0.08 | G167: -931.17
B168: 21 | E168: 0 | F168: =DHHS!$G$174 -> 0.08 | G168: -931.17
B169: 22 | E169: 0 | F169: =DHHS!$G$175 -> 0.08 | G169: -1759.71 | H169: 643.46 | I169: 1472
B170: 23 | E170: 0 | F170: =DHHS!$G$176 -> 0.08 | G170: -1759.71
B171: 24 | E171: 0 | F171: =DHHS!$G$177 -> 0.08 | G171: -1759.71
B172: 25 | E172: 0 | F172: =DHHS!$G$178 -> 0.08 | G172: -1759.71
B173: 26 | E173: 0 | F173: =DHHS!$G$179 -> 0.08 | G173: -2084.71 | I173: 325 | K173: - | L173: - | M173: - | N173: - | O173: -
B174: 27 | E174: 0 | F174: =DHHS!$G$180 -> 0.08 | G174: -2084.71 | K174: TOTALS: | L174: =SUM(L148:L173) -> 0 | M174: =SUM(M148:M173) -> 2140.65 | N174: =SUM(N148:N173) -> 0 | O174: =SUM(O148:O173) -> 0
B175: 28 | E175: 0 | F175: =DHHS!$G$181 -> 0.08 | G175: -2084.71
B176: 29 | E176: 0 | F176: =DHHS!$G$182 -> 0.08 | G176: -2084.71
B177: 30 | E177: 0 | F177: =DHHS!$G$183 -> 0.08 | G177: -2084.71
B178: 31 | E178: 0 | F178: =DHHS!$G$184 -> 0.08 | G178: -2140.65 | I178: 55.94 | K178: Balance | M178: =G178 -> -2140.65
E179: - | H179: - | I179: -
E180: =SUM(E148:E179) -> 0 | H180: =SUM(H148:H178) -> 643.46 | I180: =SUM(I148:I178) -> 2140.65 | K180: Claim on Cash | M180: =L174-M174+N174+O174-M179 -> -2140.65
M181: -
A182: Interest YTD | E182: =E180+E144+E109+E73+E39 -> 0 | K182: Difference | M182: =M178-M180 -> 0
A184: |::
A185: Jun | B185: 1 | C185: =C148 -> 2015 | E185: =ROUND(IF(G185<0,0,(G185*(F185/365))/100),2) -> 0 | F185: =DHHS!$G$191 -> 0.08 | G185: =G178+H185-I185 -> -2140.65 | K185: R0150000 | M185: 1936.57
B186: 2 | E186: 0 | F186: =DHHS!$G$192 -> 0.08 | G186: =G185+H186-I186 -> -2140.65
B187: 3 | E187: 0 | F187: =DHHS!$G$193 -> 0.08 | G187: -2140.65
B188: 4 | E188: 0 | F188: =DHHS!$G$194 -> 0.08 | G188: -2140.65
B189: 5 | E189: 0 | F189: =DHHS!$G$195 -> 0.08 | G189: -2876.65 | I189: 736
B190: 6 | E190: 0 | F190: =DHHS!$G$196 -> 0.08 | G190: -2876.65
B191: 7 | E191: 0 | F191: =DHHS!$G$197 -> 0.08 | G191: -2876.65
B192: 8 | E192: 0 | F192: =DHHS!$G$198 -> 0.08 | G192: -2876.65
B193: 9 | E193: 0 | F193: =DHHS!$G$199 -> 0.08 | G193: -2876.65
B194: 10 | E194: 0 | F194: =DHHS!$G$200 -> 0.08 | G194: -2876.65
B195: 11 | E195: 0 | F195: =DHHS!$G$201 -> 0.08 | G195: -2915.01 | I195: 38.36
B196: 12 | E196: 0 | F196: =DHHS!$G$202 -> 0.08 | G196: -2915.01
B197: 13 | E197: 0 | F197: =DHHS!$G$203 -> 0.08 | G197: -2915.01
B198: 14 | E198: 0 | F198: =DHHS!$G$204 -> 0.08 | G198: -2915.01
B199: 15 | E199: 0 | F199: =DHHS!$G$205 -> 0.08 | G199: -3229.35 | I199: 314.34
B200: 16 | E200: 0 | F200: =DHHS!$G$206 -> 0.08 | G200: -3229.35
B201: 17 | E201: 0 | F201: =DHHS!$G$207 -> 0.08 | G201: -3229.35
B202: 18 | E202: 0 | F202: =DHHS!$G$208 -> 0.08 | G202: -1088.7 | H202: 2140.65
B203: 19 | E203: 0 | F203: =DHHS!$G$209 -> 0.08 | G203: -1824.7 | I203: 736
B204: 20 | E204: 0 | F204: =DHHS!$G$210 -> 0.08 | G204: -1824.7
B205: 21 | E205: 0 | F205: =DHHS!$G$211 -> 0.08 | G205: -1824.7
B206: 22 | E206: 0 | F206: =DHHS!$G$212 -> 0.08 | G206: -1824.7
... 220 more rows

Sheet NASA
A1: NASA Letters of Credit | L1: 1010 | N1: 2000 | O1: 2210 or 2220 | Q1: \E | R1: {?}{D}{BRANCH \E}
K2: Claim on Cash Balances
H3: R0160000 | I3: R0160000 | N3: Accounts | O3: Payroll | Q3: \D | R3: {?}/100~{EDIT}{CALC}~{D}{BRANCH \D}
B4: DATE | E4: INTEREST | F4: RATE | G4: Balance | H4: Cash Receipts | I4: Expenditures | K4: Acct # | L4: Debits | M4: Credits | N4: Payable | O4: Accruals
A5: - | B5: - | C5: - | D5: - | E5: - | F5: - | G5: - | H5: - | I5: - | J5: - | K5: - | L5: - | M5: - | N5: - | O5: -
A6: BALANCE FORWARD | G6: -37267.1
A7: Jan | B7: 1 | C7: 2015 | E7: =ROUND(IF(G7<0,0,(G7*(F7/365))/100),2) -> 0 | F7: =DHHS!G9 -> 0.1 | G7: =G6+H7-I7 -> -35402.67 | I7: -1864.43 | K7: R0160000 | M7: 78105.75
B8: =B7+1 -> 2 | E8: 0 | F8: =DHHS!G10 -> 0.1 | G8: -37599.14 | I8: 2196.47
B9: 3 | E9: 0 | F9: =DHHS!G11 -> 0.1 | G9: -37599.14
B10: 4 | E10: 0 | F10: =DHHS!G12 -> 0.1 | G10: -37599.14
B11: 5 | E11: 0 | F11: =DHHS!G13 -> 0.1 | G11: -37599.14
B12: 6 | E12: 0 | F12: =DHHS!G14 -> 0.1 | G12: -37599.14
B13: 7 | E13: 0 | F13: =DHHS!G15 -> 0.1 | G13: -37599.14
B14: 8 | E14: 0 | F14: =DHHS!G16 -> 0.1 | G14: -37599.14
B15: 9 | E15: 0 | F15: =DHHS!G17 -> 0.1 | G15: -37599.14
B16: 10 | E16: 0 | F16: =DHHS!G18 -> 0.1 | G16: -37599.14
B17: 11 | E17: 0 | F17: =DHHS!G19 -> 0.1 | G17: -37599.14
B18: 12 | E18: 0 | F18: =DHHS!G20 -> 0.1 | G18: -37639.14 | I18: 40
B19: 13 | E19: 0 | F19: =DHHS!G21 -> 0.1 | G19: -38728.9 | I19: 1089.76
B20: 14 | E20: 0 | F20: =DHHS!G22 -> 0.1 | G20: -38728.9
B21: 15 | E21: 0 | F21: =DHHS!G23 -> 0.1 | G21: -38728.9
B22: 16 | E22: 0 | F22: =DHHS!G24 -> 0.1 | G22: -44990 | I22: 6261.1
B23: 17 | E23: 0 | F23: =DHHS!G25 -> 0.1 | G23: -44990
B24: 18 | E24: 0 | F24: =DHHS!G26 -> 0.1 | G24: -47216 | I24: 2226
B25: 19 | E25: 0 | F25: =DHHS!G27 -> 0.1 | G25: -47216
B26: 20 | E26: 0 | F26: =DHHS!G28 -> 0.1 | G26: -48254.48 | I26: 1038.48
B27: 21 | E27: 0 | F27: =DHHS!G29 -> 0.1 | G27: -48254.48
B28: 22 | E28: 0 | F28: =DHHS!G30 -> 0.1 | G28: -48254.48
B29: 23 | E29: 0 | F29: =DHHS!G31 -> 0.1 | G29: -48254.48
B30: 24 | E30: 0 | F30: =DHHS!G32 -> 0.1 | G30: -48254.48
B31: 25 | E31: 0 | F31: =DHHS!G33 -> 0.1 | G31: -48254.48
B32: 26 | E32: 0 | F32: =DHHS!G34 -> 0.1 | G32: -50977.06 | I32: 2722.58 | L32: - | M32: - | N32: - | O32: -
B33: 27 | E33: 0 | F33: =DHHS!G35 -> 0.1 | G33: -51037.61 | I33: 60.55 | K33: TOTALS: | L33: =SUM(L7:L32) -> 0 | M33: =SUM(M7:M32) -> 78105.75 | N33: =SUM(N7:N32) -> 0 | O33: =SUM(O7:O32) -> 0
B34: 28 | E34: 0 | F34: =DHHS!G36 -> 0.1 | G34: -51037.61
B35: 29 | E35: 0 | F35: =DHHS!G37 -> 0.1 | G35: -51037.61 | K35: Balance | M35: =G37 -> -78105.75
B36: 30 | E36: 0 | F36: =DHHS!G38 -> 0.1 | G36: -56965.77 | I36: 5928.16
B37: 31 | E37: 0 | F37: =DHHS!G39 -> 0.1 | G37: -78105.75 | I37: 21139.98 | K37: Claim on Cash | M37: =L33-M33+N33+O33 -> -78105.75
E38: - | H38: - | I38: -
E39: =SUM(E7:E37) -> 0 | H39: =SUM(H7:H37) -> 0 | I39: =SUM(I7:I37) -> 40838.65 | M39: -
K40: Difference | M40: =M35-SUM(M37:M38) -> 0
A41: Interest YTD | E41: =E39 -> 0
A45: Feb | B45: 1 | C45: =C7 -> 2015 | E45: =ROUND(IF(G45<0,0,(G45*(F45/365))/100),2) -> 0 | F45: =DHHS!$G$46 -> 0.1 | G45: =G37+H45-I45 -> -78767.41 | I45: 661.66 | K45: R0160000 | M45: 60970.81
B46: =B45+1 -> 2 | E46: 0 | F46: =DHHS!$G$47 -> 0.1 | G46: =G45+H46-I46 -> -78893.26 | I46: 125.85
B47: 3 | E47: 0 | F47: =DHHS!$G$48 -> 0.1 | G47: -78893.26
B48: 4 | E48: 0 | F48: =DHHS!$G$49 -> 0.1 | G48: -41712.71 | H48: 37180.55
B49: 5 | E49: 0 | F49: =DHHS!$G$50 -> 0.1 | G49: -41744.84 | I49: 32.13
B50: 6 | E50: 0 | F50: =DHHS!$G$51 -> 0.1 | G50: -41917.86 | I50: 173.02
B51: 7 | E51: 0 | F51: =DHHS!$G$52 -> 0.1 | G51: -41917.86
B52: 8 | E52: 0 | F52: =DHHS!$G$53 -> 0.1 | G52: -41917.86
B53: 9 | E53: 0 | F53: =DHHS!$G$54 -> 0.1 | G53: -41917.86
B54: 10 | E54: 0 | F54: =DHHS!$G$55 -> 0.1 | G54: -41917.86
B55: 11 | E55: 0 | F55: =DHHS!$G$56 -> 0.1 | G55: -41917.86
B56: 12 | E56: 0 | F56: =DHHS!$G$57 -> 0.1 | G56: -41917.86
B57: 13 | E57: 0 | F57: =DHHS!$G$58 -> 0.08 | G57: -48105.11 | I57: 6187.25
B58: 14 | E58: 0 | F58: =DHHS!$G$59 -> 0.08 | G58: -48105.11
B59: 15 | E59: 0 | F59: =DHHS!$G$60 -> 0.08 | G59: -48105.11
B60: 16 | E60: 0 | F60: =DHHS!$G$61 -> 0.08 | G60: -49313.21 | I60: 1208.1
B61: 17 | E61: 0 | F61: =DHHS!$G$62 -> 0.08 | G61: -49411.3 | I61: 98.09
B62: 18 | E62: 0 | F62: =DHHS!$G$63 -> 0.08 | G62: -51938.28 | I62: 2526.98
B63: 19 | E63: 0 | F63: =DHHS!$G$64 -> 0.08 | G63: -51938.28
B64: 20 | E64: 0 | F64: =DHHS!$G$65 -> 0.08 | G64: -51938.28
B65: 21 | E65: 0 | F65: =DHHS!$G$66 -> 0.08 | G65: -51938.28
B66: 22 | E66: 0 | F66: =DHHS!$G$67 -> 0.08 | G66: -51938.28
B67: 23 | E67: 0 | F67: =DHHS!$G$68 -> 0.08 | G67: -53416.91 | I67: 1478.63
B68: 24 | E68: 0 | F68: =DHHS!$G$69 -> 0.08 | G68: -57413.21 | I68: 3996.3 | L68: - | M68: - | N68: - | O68: -
B69: 25 | E69: 0 | F69: =DHHS!$G$70 -> 0.08 | G69: -16681.21 | H69: 40732 | K69: TOTALS: | L69: =SUM(L45:L67) -> 0 | M69: =SUM(M45:M67) -> 60970.81 | N69: =SUM(N45:N67) -> 0 | O69: =SUM(O45:O67) -> 0
B70: 26 | E70: 0 | F70: =DHHS!$G$71 -> 0.08 | G70: -20265.21 | I70: 3584
B71: 27 | E71: 0 | F71: =DHHS!$G$72 -> 0.08 | G71: -26241.35 | I71: 5976.14 | K71: Balance | M71: =G72 -> -60970.81
B72: 28 | E72: 0 | F72: =DHHS!$G$73 -> 0.08 | G72: -60970.81 | I72: 34729.46
K73: Claim on Cash | M73: =L69-M69+N69+O69 -> -60970.81
E74: - | H74: - | I74: - | M74: -
E75: =SUM(E45:E72) -> 0 | H75: =SUM(H45:H72) -> 77912.55 | I75: =SUM(I45:I73) -> 60777.61 | K75: Difference | M75: =M71-M73-M72 -> 0
A77: Interest YTD | E77: =E75+E41 -> 0
A78: |::
A79: Mar | B79: 1 | C79: =C45 -> 2015 | E79: =ROUND(IF(G79<0,0,(G79*(F79/365))/100),2) -> 0 | F79: =DHHS!$G$81 -> 0.08 | G79: =G72+H79-I79 -> -60970.81 | K79: R0160000 | M79: 53478.63
B80: =B79+1 -> 2 | E80: 0 | F80: =DHHS!$G$82 -> 0.08 | G80: =G79+H80-I80 -> -60970.81
B81: 3 | E81: 0 | F81: =DHHS!$G$83 -> 0.08 | G81: -60970.81
B82: 4 | E82: 0 | F82: =DHHS!$G$84 -> 0.08 | G82: -60978.67 | I82: 7.86
B83: 5 | E83: 0 | F83: =DHHS!$G$85 -> 0.08 | G83: -60978.67
B84: 6 | E84: 0 | F84: =DHHS!$G$86 -> 0.08 | G84: -60978.67
B85: 7 | E85: 0 | F85: =DHHS!$G$87 -> 0.08 | G85: -60978.67
B86: 8 | E86: 0 | F86: =DHHS!$G$88 -> 0.08 | G86: -60978.67
B87: 9 | E87: 0 | F87: =DHHS!$G$89 -> 0.08 | G87: -60978.67
B88: 10 | E88: 0 | F88: =DHHS!$G$90 -> 0.08 | G88: -60978.67
B89: 11 | E89: 0 | F89: =DHHS!$G$91 -> 0.08 | G89: -60978.67
B90: 12 | E90: 0 | F90: =DHHS!$G$92 -> 0.08 | G90: -60978.67
B91: 13 | E91: 0 | F91: =DHHS!$G$93 -> 0.08 | G91: -70492.93 | I91: 9514.26
B92: 14 | E92: 0 | F92: =DHHS!$G$94 -> 0.08 | G92: -70492.93
B93: 15 | E93: 0 | F93: =DHHS!$G$95 -> 0.08 | G93: -70492.93
B94: 16 | E94: 0 | F94: =DHHS!$G$96 -> 0.08 | G94: -74518.18 | I94: 4025.25
B95: 17 | E95: 0 | F95: =DHHS!$G$97 -> 0.08 | G95: -74518.18
B96: 18 | E96: 0 | F96: =DHHS!$G$98 -> 0.08 | G96: -74518.18
B97: 19 | E97: 0 | F97: =DHHS!$G$99 -> 0.08 | G97: -76730.49 | I97: 2212.31
B98: 20 | E98: 0 | F98: =DHHS!$G$100 -> 0.08 | G98: -15759.71 | H98: 60970.78
B99: 21 | E99: 0 | F99: =DHHS!$G$101 -> 0.08 | G99: -15759.71
B100: 22 | E100: 0 | F100: =DHHS!$G$102 -> 0.08 | G100: -15759.71
B101: 23 | E101: 0 | F101: =DHHS!$G$103 -> 0.08 | G101: -15759.71
B102: 24 | E102: 0 | F102: =DHHS!$G$104 -> 0.08 | G102: -18759.71 | I102: 3000
B103: 25 | E103: 0 | F103: =DHHS!$G$105 -> 0.08 | G103: -19008.24 | I103: 248.53
B104: 26 | E104: 0 | F104: =DHHS!$G$106 -> 0.08 | G104: -19010.4 | I104: 2.16 | K104: - | L104: - | M104: - | N104: - | O104: -
B105: 27 | E105: 0 | F105: =DHHS!$G$107 -> 0.08 | G105: -26941.93 | I105: 7931.53 | K105: TOTALS | L105: =SUM(L79:L104) -> 0 | M105: =SUM(M79:M104) -> 53478.63 | N105: =SUM(N79:N104) -> 0 | O105: =SUM(O79:O104) -> 0
B106: 28 | E106: 0 | F106: =DHHS!$G$108 -> 0.08 | G106: -26941.93
B107: 29 | E107: 0 | F107: =DHHS!$G$109 -> 0.08 | G107: -26941.93 | K107: Balance | M107: =G109 -> -53478.63
B108: 30 | E108: 0 | F108: =DHHS!$G$110 -> 0.08 | G108: -26982.36 | I108: 40.43
B109: 31 | E109: 0 | F109: =DHHS!$G$111 -> 0.08 | G109: -53478.63 | I109: 26496.27 | K109: Claim on Cash | M109: =L105-M105+N105+O105 -> -53478.63
E110: - | H110: - | M110: -
E111: =SUM(E79:E109) -> 0 | H111: =SUM(H79:H109) -> 60970.78 | I111: 184853.93 | K111: Difference | M111: =M107-M109 -> 0
A113: Interest YTD | E113: =E111+E77 -> 0
A114: |::
A115: Apr | B115: 1 | C115: =C79 -> 2015 | E115: =ROUND(IF(G115<0,0,(G115*(F115/365))/100),2) -> 0 | F115: =DHHS!$G$118 -> 0.08 | G115: =G109+H115-I115 -> -56347.85 | I115: 2869.22 | K115: R0160000 | M115: 59653.1
B116: =B115+1 -> 2 | E116: 0 | F116: =DHHS!$G$119 -> 0.08 | G116: =G115+H116-I116 -> -56347.85 | K116: R0162009 | L116: 0 | N116: -3845.84
B117: 3 | E117: 0 | F117: =DHHS!$G$120 -> 0.08 | G117: -57433.37 | I117: 1085.52 | K117: R0162018 | L117: 0 | N117: -13000
B118: 4 | E118: 0 | F118: =DHHS!$G$121 -> 0.08 | G118: -57433.37
B119: 5 | E119: 0 | F119: =DHHS!$G$122 -> 0.08 | G119: -57433.37
B120: 6 | E120: 0 | F120: =DHHS!$G$123 -> 0.08 | G120: -60566.87 | I120: 3133.5
B121: 7 | E121: 0 | F121: =DHHS!$G$124 -> 0.08 | G121: -61275.37 | I121: 708.5
B122: 8 | E122: 0 | F122: =DHHS!$G$125 -> 0.08 | G122: -61275.37
B123: 9 | E123: 0 | F123: =DHHS!$G$126 -> 0.08 | G123: -61275.37
B124: 10 | E124: 0 | F124: =DHHS!$G$127 -> 0.08 | G124: -67770.15 | I124: 6494.78
B125: 11 | E125: 0 | F125: =DHHS!$G$128 -> 0.08 | G125: -67770.15
B126: 12 | E126: 0 | F126: =DHHS!$G$129 -> 0.08 | G126: -67770.15
B127: 13 | E127: 0 | F127: =DHHS!$G$130 -> 0.08 | G127: -67773.63 | I127: 3.48
B128: 14 | E128: 0 | F128: =DHHS!$G$131 -> 0.08 | G128: -72996.38 | I128: 5222.75
B129: 15 | E129: 0 | F129: =DHHS!$G$132 -> 0.08 | G129: -73557.26 | I129: 560.88
B130: 16 | E130: 0 | F130: =DHHS!$G$133 -> 0.08 | G130: -73819.15 | I130: 261.89
B131: 17 | E131: 0 | F131: =DHHS!$G$134 -> 0.08 | G131: -73819.15
B132: 18 | E132: 0 | F132: =DHHS!$G$135 -> 0.08 | G132: -73819.15
B133: 19 | E133: 0 | F133: =DHHS!$G$136 -> 0.08 | G133: -73819.15
B134: 20 | E134: 0 | F134: =DHHS!$G$137 -> 0.08 | G134: -73821.8 | I134: 2.65
B135: 21 | E135: 0 | F135: =DHHS!$G$138 -> 0.08 | G135: -75287.39 | I135: 1465.59
B136: 22 | E136: 0 | F136: =DHHS!$G$139 -> 0.08 | G136: -75287.39
B137: 23 | E137: 0 | F137: =DHHS!$G$140 -> 0.08 | G137: -21808.79 | H137: 53478.6
B138: 24 | E138: 0 | F138: =DHHS!$G$141 -> 0.08 | G138: -28549.96 | I138: 6741.17
B139: 25 | E139: 0 | F139: =DHHS!$G$142 -> 0.08 | G139: -28549.96 | K139: - | L139: - | M139: - | N139: - | O139: -
B140: 26 | E140: 0 | F140: =DHHS!$G$143 -> 0.08 | G140: -28549.96 | K140: TOTALS: | L140: =SUM(L115:L139) -> 0 | M140: =SUM(M115:M139) -> 59653.1 | N140: =SUM(N115:N139) -> -16845.84 | O140: =SUM(O115:O139) -> 0
B141: 27 | E141: 0 | F141: =DHHS!$G$144 -> 0.08 | G141: -28549.96
B142: 28 | E142: 0 | F142: =DHHS!$G$145 -> 0.08 | G142: -32395.8 | I142: 3845.84 | K142: Balance | M142: =G144 -> -76498.94
B143: 29 | E143: 0 | F143: =DHHS!$G$146 -> 0.08 | G143: -32581.05 | I143: 185.25
B144: 30 | E144: 0 | F144: =DHHS!$G$147 -> 0.08 | G144: =G143+H144-I144 -> -76498.94 | I144: 43917.89 | K144: Claim on Cash | M144: =L140-M140+N140+O140 -> -76498.94
E145: - | H145: - | I145: - | M145: -
E146: =SUM(E115:E144) -> 0 | H146: =SUM(H115:H144) -> 53478.6 | I146: =SUM(I115:I144) -> 76498.91 | K146: Difference | M146: =M142-M144 -> 0
A148: Interest YTD | E148: =E146+E113 -> 0
A149: |::
A150: May | B150: 1 | C150: =C115 -> 2015 | E150: =ROUND(IF(G150<0,0,(G150*(F150/365))/100),2) -> 0 | F150: =DHHS!$G$154 -> 0.08 | G150: =G144+H150-I150 -> -76844.64 | I150: 345.7 | K150: R0160000 | M150: 98393.89
B151: =B150+1 -> 2 | E151: 0 | F151: =DHHS!$G$155 -> 0.08 | G151: =G150+H151-I151 -> -76844.64
B152: 3 | E152: 0 | F152: =DHHS!$G$156 -> 0.08 | G152: -76844.64
B153: 4 | E153: 0 | F153: =DHHS!$G$157 -> 0.08 | G153: -80310.62 | I153: 3465.98
B154: 5 | E154: 0 | F154: =DHHS!$G$158 -> 0.08 | G154: -80310.62
B155: 6 | E155: 0 | F155: =DHHS!$G$159 -> 0.08 | G155: -80343.79 | I155: 33.17
B156: 7 | E156: 0 | F156: =DHHS!$G$160 -> 0.08 | G156: -80343.79
B157: 8 | E157: 0 | F157: =DHHS!$G$161 -> 0.08 | G157: =G156+H157-I157 -> -88340.41 | I157: 7996.62
B158: 9 | E158: 0 | F158: =DHHS!$G$162 -> 0.08 | G158: -88340.41
B159: 10 | E159: 0 | F159: =DHHS!$G$163 -> 0.08 | G159: -88340.41
B160: 11 | E160: 0 | F160: =DHHS!$G$164 -> 0.08 | G160: =G159+H160-I160 -> -90257.65 | I160: 1917.24
B161: 12 | E161: 0 | F161: =DHHS!$G$165 -> 0.08 | G161: -90257.65
B162: 13 | E162: 0 | F162: =DHHS!$G$166 -> 0.08 | G162: -107541.18 | I162: 17283.53
B163: 14 | E163: 0 | F163: =DHHS!$G$167 -> 0.08 | G163: -107541.18
B164: 15 | E164: 0 | F164: =DHHS!$G$168 -> 0.08 | G164: -107572.26 | I164: 31.08
B165: 16 | E165: 0 | F165: =DHHS!$G$169 -> 0.08 | G165: -107572.26
B166: 17 | E166: 0 | F166: =DHHS!$G$170 -> 0.08 | G166: -107572.26
B167: 18 | E167: 0 | F167: =DHHS!$G$171 -> 0.08 | G167: -113106.88 | I167: 5534.62
B168: 19 | E168: 0 | F168: =DHHS!$G$172 -> 0.08 | G168: -114898.66 | I168: 1791.78
B169: 20 | E169: 0 | F169: =DHHS!$G$173 -> 0.08 | G169: -114898.66
B170: 21 | E170: 0 | F170: =DHHS!$G$174 -> 0.08 | G170: -114906.93 | I170: 8.27
B171: 22 | E171: 0 | F171: =DHHS!$G$175 -> 0.08 | G171: -49320.18 | H171: 76498.91 | I171: 10912.16
B172: 23 | E172: 0 | F172: =DHHS!$G$176 -> 0.08 | G172: -49320.18
B173: 24 | E173: 0 | F173: =DHHS!$G$177 -> 0.08 | G173: -49320.18
B174: 25 | E174: 0 | F174: =DHHS!$G$178 -> 0.08 | G174: -49320.18
B175: 26 | E175: 0 | F175: =DHHS!$G$179 -> 0.08 | G175: -51402.72 | I175: 2082.54 | K175: - | L175: - | M175: - | N175: - | O175: -
B176: 27 | E176: 0 | F176: =DHHS!$G$180 -> 0.08 | G176: -57267.04 | I176: 5864.32 | K176: TOTALS: | L176: =SUM(L150:L175) -> 0 | M176: =SUM(M150:M175) -> 98393.89 | N176: =SUM(N150:N175) -> 0 | O176: =SUM(O150:O175) -> 0
B177: 28 | E177: 0 | F177: =DHHS!$G$181 -> 0.08 | G177: -59326.1 | I177: 2059.06
B178: 29 | E178: 0 | F178: =DHHS!$G$182 -> 0.08 | G178: -60819.62 | I178: 1493.52
B179: 30 | E179: 0 | F179: =DHHS!$G$183 -> 0.08 | G179: -60819.62
B180: 31 | E180: 0 | F180: =DHHS!$G$184 -> 0.08 | G180: -98393.89 | I180: 37574.27 | K180: Balance | M180: =G180 -> -98393.89
E181: - | H181: - | I181: -
E182: =SUM(E150:E180) -> 0 | H182: =SUM(H150:H180) -> 76498.91 | I182: =SUM(I150:I180) -> 98393.86 | K182: Claim on Cash | M182: =L176-M176+N176+O176 -> -98393.89
M183: -
A184: Interest YTD | E184: =E182+E148 -> 0 | K184: Difference | M184: =M180-M182 -> 0
A186: |::
A187: Jun | B187: 1 | C187: =C150 -> 2015 | E187: =ROUND(IF(G187<0,0,(G187*(F187/365))/100),2) -> 0 | F187: =DHHS!$G$191 -> 0.08 | G187: =G180+H187-I187 -> -99534.95 | I187: 1141.06 | K187: R0160000 | M187: 69053.49
B188: =B187+1 -> 2 | E188: 0 | F188: =DHHS!$G$192 -> 0.08 | G188: =G187+H188-I188 -> -99535.61 | I188: 0.66
B189: 3 | E189: 0 | F189: =DHHS!$G$193 -> 0.08 | G189: -102482.94 | I189: 2947.33
B190: 4 | E190: 0 | F190: =DHHS!$G$194 -> 0.08 | G190: -102482.94
B191: 5 | E191: 0 | F191: =DHHS!$G$195 -> 0.08 | G191: -111672.93 | I191: 9189.99
B192: 6 | E192: 0 | F192: =DHHS!$G$196 -> 0.08 | G192: -111672.93
B193: 7 | E193: 0 | F193: =DHHS!$G$197 -> 0.08 | G193: -111672.93
B194: 8 | E194: 0 | F194: =DHHS!$G$198 -> 0.08 | G194: -111672.93
B195: 9 | E195: 0 | F195: =DHHS!$G$199 -> 0.08 | G195: -111672.93
B196: 10 | E196: 0 | F196: =DHHS!$G$200 -> 0.08 | G196: -112060.74 | I196: 387.81
B197: 11 | E197: 0 | F197: =DHHS!$G$201 -> 0.08 | G197: -112156.18 | I197: 95.44
B198: 12 | E198: 0 | F198: =DHHS!$G$202 -> 0.08 | G198: -114143.58 | I198: 1987.4
B199: 13 | E199: 0 | F199: =DHHS!$G$203 -> 0.08 | G199: -114143.58
B200: 14 | E200: 0 | F200: =DHHS!$G$204 -> 0.08 | G200: -114515.04 | I200: 371.46
B201: 15 | E201: 0 | F201: =DHHS!$G$205 -> 0.08 | G201: -114516.54 | I201: 1.5
B202: 16 | E202: 0 | F202: =DHHS!$G$206 -> 0.08 | G202: -114516.54
B203: 17 | E203: 0 | F203: =DHHS!$G$207 -> 0.08 | G203: -114516.54
B204: 18 | E204: 0 | F204: =DHHS!$G$208 -> 0.08 | G204: -16122.68 | H204: 98393.86
B205: 19 | E205: 0 | F205: =DHHS!$G$209 -> 0.08 | G205: -23874.15 | I205: 7751.47
B206: 20 | E206: 0 | F206: =DHHS!$G$210 -> 0.08 | G206: -23874.15
B207: 21 | E207: 0 | F207: =DHHS!$G$211 -> 0.08 | G207: -23874.15
... 222 more rows
